Invoice_Payment_Date,Org_Level_2_Desc,Supplier_Name,Nominal_Desc, Invoice_Line_Net_Amount ,Internal_Category_Code,Quarter
28/11/2016,BUSINESS & CUSTOMER SERVICES,Transport Trading Ltd,DIRECT TRANSPORT," 3,211,926.00 ",Public Transport.Passenger Transport.NA,Q3
14/11/2016,CAPITAL CC,Muse Developments Ltd,"MAINTENANCE - EQUIPMENT, FURNITURE AND MATERIALS"," 2,543,172.00 ","Works - Construction, Repair & Maint.Architect.NA",Q3
16/12/2016,CAPITAL CC,Muse Developments Ltd,"MAINTENANCE - EQUIPMENT, FURNITURE AND MATERIALS"," 2,440,807.00 ","Works - Construction, Repair & Maint.Architect.NA",Q3
28/11/2016,PUBLIC HEALTH,Guys & St Thomas NHS Foundation Trust,PAYMENT TO HEALTH AUTHORITIES," 1,768,709.00 ",Healthcare.Public Health.NA,Q3
12/10/2016,ADULT SOCIAL CARE,NHS Lambeth Clinical Commissioning Group,PAYMENT TO HEALTH AUTHORITIES," 1,631,022.46 ",Healthcare.Public Health.NA,Q3
08/12/2016,CAPITAL CC,Mears Ltd,FACILITIES MANAGEMENT," 1,263,861.00 ","Works - Construction, Repair & Maint.Buildings.Repair & Maintenance",Q3
20/12/2016,CENTRAL HRA BUDGETS,Loughborough EMB Ltd,PROFESSIONAL SERVICES - GENERAL," 1,243,764.00 ",Housing Management.Arms Length Management Organisations.NA,Q3
26/12/2016,"NEIGHBOURHOODS, ENVIRONMENT & EMPLOYMENT",Western Riverside Waste Authority,WASTE DISPOSAL COSTS," 1,191,567.54 ",Environmental Services.Waste Management.NA,Q3
11/11/2016,CAPITAL CC,Mears Ltd,FACILITIES MANAGEMENT," 1,175,271.32 ","Works - Construction, Repair & Maint.Buildings.Repair & Maintenance",Q3
24/10/2016,"NEIGHBOURHOODS, ENVIRONMENT & EMPLOYMENT",Western Riverside Waste Authority,WASTE DISPOSAL COSTS," 1,174,309.57 ",Environmental Services.Waste Management.NA,Q3
22/11/2016,"NEIGHBOURHOODS, ENVIRONMENT & EMPLOYMENT",Western Riverside Waste Authority,WASTE DISPOSAL COSTS," 1,123,577.45 ",Environmental Services.Waste Management.NA,Q3
08/11/2016,CAPITAL CC,Mears Ltd,FACILITIES MANAGEMENT," 1,045,528.31 ","Works - Construction, Repair & Maint.Buildings.Repair & Maintenance",Q3
21/12/2016,CAPITAL CC,Mears Ltd,FACILITIES MANAGEMENT," 1,022,318.77 ","Works - Construction, Repair & Maint.Buildings.Repair & Maintenance",Q3
28/11/2016,ADULT SOCIAL CARE,NHS Lambeth Clinical Commissioning Group,PAYMENT TO HEALTH AUTHORITIES," 982,253.73 ",Healthcare.Public Health.NA,Q3
16/12/2016,PUBLIC HEALTH,South London & Maudsley (nhs) Trust,PAYMENT TO HEALTH AUTHORITIES," 975,537.25 ",Healthcare.Public Health.NA,Q3
13/10/2016,PUBLIC HEALTH,NHS Lambeth Clinical Commissioning Group,PAYMENT TO HEALTH AUTHORITIES," 929,246.37 ",Healthcare.Public Health.NA,Q3
16/12/2016,CAPITAL CC,Mears Ltd,FACILITIES MANAGEMENT," 869,097.55 ","Works - Construction, Repair & Maint.Buildings.Repair & Maintenance",Q3
21/10/2016,"STRATEGIC HOUSING, REGENERATION & COMMUNITIES (HRA)",Regenter Myatts Field North Ltd,"MAINTENANCE - EQUIPMENT, FURNITURE AND MATERIALS"," 866,045.21 ","Works - Construction, Repair & Maint.Buildings.Construction",Q3
15/12/2016,CAPITAL CC,Keepmoat Regeneration Ltd,"MAINTENANCE - EQUIPMENT, FURNITURE AND MATERIALS"," 849,256.95 ","Works - Construction, Repair & Maint.Buildings.Construction",Q3
22/11/2016,"STRATEGIC HOUSING, REGENERATION & COMMUNITIES (HRA)",Regenter Myatts Field North Ltd,"MAINTENANCE - EQUIPMENT, FURNITURE AND MATERIALS"," 842,353.80 ","Works - Construction, Repair & Maint.Buildings.Construction",Q3
19/12/2016,"STRATEGIC HOUSING, REGENERATION & COMMUNITIES (HRA)",Regenter Myatts Field North Ltd,"MAINTENANCE - EQUIPMENT, FURNITURE AND MATERIALS"," 835,242.02 ","Works - Construction, Repair & Maint.Buildings.Construction",Q3
23/12/2016,"STRATEGIC HOUSING, REGENERATION & COMMUNITIES (HRA)",Regenter Myatts Field North Ltd,"MAINTENANCE - EQUIPMENT, FURNITURE AND MATERIALS"," 835,242.02 ","Works - Construction, Repair & Maint.Buildings.Construction",Q3
31/10/2016,CAPITAL CC,Mears Ltd,FACILITIES MANAGEMENT," 716,634.95 ","Works - Construction, Repair & Maint.Buildings.Repair & Maintenance",Q3
20/10/2016,CAPITAL CC,Elliott Group Limited,PREMISES HIRE - FACILITIES," 616,000.00 ",Facilities & Management Services.Portable Building Hire.NA,Q3
03/11/2016,HUMAN RESOURCES & ORGANISATIONAL DEVELOPMENT,Matrix SCM Ltd,AGENCY STAFF," 579,069.28 ",Human Resources.Temporary & Agency Staff.NA,Q3
05/12/2016,BUSINESS & CUSTOMER SERVICES,Capita Business Services Ltd,CONSULTANCY FEES," 571,206.06 ",Consultancy.Business.NA,Q3
07/12/2016,CAPITAL CC,Veolia ES (UK) Ltd,REFUSE COLLECTION," 560,834.62 ",Environmental Services.Waste Management.Waste Collection,Q3
26/12/2016,BUSINESS & CUSTOMER SERVICES,Capita Business Services Ltd,CONSULTANCY FEES," 559,381.05 ",Consultancy.Business.NA,Q3
28/12/2016,CAPITAL CC,Keepmoat Regeneration Ltd,"MAINTENANCE - EQUIPMENT, FURNITURE AND MATERIALS"," 544,034.22 ","Works - Construction, Repair & Maint.Buildings.Construction",Q3
24/10/2016,"NEIGHBOURHOODS, ENVIRONMENT & EMPLOYMENT",Veolia ES (UK) Ltd,REFUSE COLLECTION," 535,448.32 ",Environmental Services.Waste Management.Waste Collection,Q3
29/11/2016,"NEIGHBOURHOODS, ENVIRONMENT & EMPLOYMENT",Veolia ES (UK) Ltd,REFUSE COLLECTION," 535,448.32 ",Environmental Services.Waste Management.Waste Collection,Q3
21/12/2016,"NEIGHBOURHOODS, ENVIRONMENT & EMPLOYMENT",Veolia ES (UK) Ltd,REFUSE COLLECTION," 535,448.32 ",Environmental Services.Waste Management.Waste Collection,Q3
17/11/2016,HUMAN RESOURCES & ORGANISATIONAL DEVELOPMENT,Matrix SCM Ltd,AGENCY STAFF," 532,553.21 ",Human Resources.Temporary & Agency Staff.NA,Q3
15/12/2016,HUMAN RESOURCES & ORGANISATIONAL DEVELOPMENT,Matrix SCM Ltd,AGENCY STAFF," 532,206.69 ",Human Resources.Temporary & Agency Staff.NA,Q3
01/11/2016,BUSINESS & CUSTOMER SERVICES,Capita Business Services Ltd,CONSULTANCY FEES," 531,755.65 ",Consultancy.Business.NA,Q3
04/11/2016,CAPITAL CC,Veolia ES (UK) Ltd,REFUSE COLLECTION," 518,054.88 ",Environmental Services.Waste Management.Waste Collection,Q3
13/10/2016,HUMAN RESOURCES & ORGANISATIONAL DEVELOPMENT,Matrix SCM Ltd,AGENCY STAFF," 513,984.70 ",Human Resources.Temporary & Agency Staff.NA,Q3
01/12/2016,HUMAN RESOURCES & ORGANISATIONAL DEVELOPMENT,Matrix SCM Ltd,AGENCY STAFF," 504,230.96 ",Human Resources.Temporary & Agency Staff.NA,Q3
24/10/2016,"NEIGHBOURHOODS, ENVIRONMENT & EMPLOYMENT",Veolia ES (UK) Ltd,STREET SWEEPING," 503,862.52 ",Environmental Services.Street Cleansing.NA,Q3
29/11/2016,"NEIGHBOURHOODS, ENVIRONMENT & EMPLOYMENT",Veolia ES (UK) Ltd,STREET SWEEPING," 503,862.52 ",Environmental Services.Street Cleansing.NA,Q3
21/12/2016,"NEIGHBOURHOODS, ENVIRONMENT & EMPLOYMENT",Veolia ES (UK) Ltd,STREET SWEEPING," 503,862.52 ",Environmental Services.Street Cleansing.NA,Q3
24/11/2016,HUMAN RESOURCES & ORGANISATIONAL DEVELOPMENT,Matrix SCM Ltd,AGENCY STAFF," 501,348.72 ",Human Resources.Temporary & Agency Staff.NA,Q3
23/11/2016,CAPITAL CC,Elliott Group Limited,PREMISES HIRE - FACILITIES," 501,000.00 ",Facilities & Management Services.Portable Building Hire.NA,Q3
24/11/2016,CAPITAL CC,Lambeth Lighting Services,"PURCHASE - EQUIPMENT, FURNITURE AND MATERIALS"," 477,941.01 ",Highway Equipment & Materials.Street Lighting.NA,Q3
31/10/2016,HUMAN RESOURCES & ORGANISATIONAL DEVELOPMENT,Matrix SCM Ltd,AGENCY STAFF," 475,474.33 ",Human Resources.Temporary & Agency Staff.NA,Q3
10/11/2016,HUMAN RESOURCES & ORGANISATIONAL DEVELOPMENT,Matrix SCM Ltd,AGENCY STAFF," 474,491.61 ",Human Resources.Temporary & Agency Staff.NA,Q3
02/12/2016,HUMAN RESOURCES & ORGANISATIONAL DEVELOPMENT,Matrix SCM Ltd,AGENCY STAFF," 474,422.96 ",Human Resources.Temporary & Agency Staff.NA,Q3
07/11/2016,"STRATEGIC HOUSING, REGENERATION & COMMUNITIES (HRA)",Loughborough EMB Ltd,PRIVATE CONTRACTORS PAYMENT - OTHER," 464,459.46 ",Housing Management.Arms Length Management Organisations.NA,Q3
10/11/2016,HUMAN RESOURCES & ORGANISATIONAL DEVELOPMENT,Matrix SCM Ltd,AGENCY STAFF," 460,143.91 ",Human Resources.Temporary & Agency Staff.NA,Q3
03/11/2016,"STRATEGIC HOUSING, REGENERATION & COMMUNITIES (HRA)",Loughborough EMB Ltd,PRIVATE CONTRACTORS PAYMENT - OTHER," 451,236.00 ",Housing Management.Arms Length Management Organisations.NA,Q3
28/11/2016,CAPITAL CC,Breyer Group Plc_d,"MAINTENANCE - EQUIPMENT, FURNITURE AND MATERIALS"," 434,305.85 ","Works - Construction, Repair & Maint.Buildings.Construction",Q3
25/11/2016,CAPITAL CC,Mears Ltd,FACILITIES MANAGEMENT," 432,258.93 ","Works - Construction, Repair & Maint.Buildings.Repair & Maintenance",Q3
19/12/2016,CAPITAL CC,Lambeth Lighting Services,"PURCHASE - EQUIPMENT, FURNITURE AND MATERIALS"," 430,318.98 ",Highway Equipment & Materials.Street Lighting.NA,Q3
24/10/2016,CAPITAL CC,Hanne & Co Solicitors,PROFESSIONAL SERVICES - GENERAL," 430,020.00 ",Legal Services.Legal Opinion.NA,Q3
17/11/2016,CAPITAL CC,Extraspace Solutions (Uk)ltd,"PURCHASE - EQUIPMENT, FURNITURE AND MATERIALS"," 423,000.00 ",Education.Supplies.NA,Q3
04/11/2016,CAPITAL CC,Veolia ES (UK) Ltd,REFUSE COLLECTION," 415,443.08 ",Environmental Services.Waste Management.Waste Collection,Q3
02/11/2016,CAPITAL CC,Lambeth Lighting Services,"PURCHASE - EQUIPMENT, FURNITURE AND MATERIALS"," 403,632.16 ",Highway Equipment & Materials.Street Lighting.NA,Q3
15/11/2016,CAPITAL CC,Mears Ltd,FACILITIES MANAGEMENT," 394,530.62 ","Works - Construction, Repair & Maint.Buildings.Repair & Maintenance",Q3
20/10/2016,CAPITAL CC,Elliott Group Limited,PREMISES HIRE - FACILITIES," 392,000.00 ",Facilities & Management Services.Portable Building Hire.NA,Q3
04/11/2016,CAPITAL CC,Veolia ES (UK) Ltd,REFUSE COLLECTION," 390,782.06 ",Environmental Services.Waste Management.Waste Collection,Q3
22/12/2016,CAPITAL CC,Extraspace Solutions (Uk)ltd,"PURCHASE - EQUIPMENT, FURNITURE AND MATERIALS"," 370,000.00 ",Education.Supplies.NA,Q3
28/11/2016,CAPITAL CC,ME Construction Ltd,FACILITIES MANAGEMENT," 369,338.99 ","Works - Construction, Repair & Maint.Buildings.Repair & Maintenance",Q3
28/11/2016,CAPITAL CC,Keepmoat Regeneration Ltd,"MAINTENANCE - EQUIPMENT, FURNITURE AND MATERIALS"," 347,820.49 ","Works - Construction, Repair & Maint.Buildings.Construction",Q3
31/10/2016,CAPITAL CC,Breyer Group Plc_d,"MAINTENANCE - EQUIPMENT, FURNITURE AND MATERIALS"," 347,450.32 ","Works - Construction, Repair & Maint.Buildings.Construction",Q3
02/12/2016,CAPITAL CC,Breyer Group Plc_d,"MAINTENANCE - EQUIPMENT, FURNITURE AND MATERIALS"," 341,267.29 ","Works - Construction, Repair & Maint.Buildings.Construction",Q3
17/11/2016,CAPITAL CC,Mears Ltd,FACILITIES MANAGEMENT," 336,940.07 ","Works - Construction, Repair & Maint.Buildings.Repair & Maintenance",Q3
21/12/2016,CAPITAL CC,Elliott Group Limited,PREMISES HIRE - FACILITIES," 317,000.00 ",Facilities & Management Services.Portable Building Hire.NA,Q3
21/12/2016,CAPITAL CC,Veolia ES (UK) Ltd,REFUSE COLLECTION," 312,898.51 ",Environmental Services.Waste Management.Waste Collection,Q3
13/12/2016,"NEIGHBOURHOODS, ENVIRONMENT & EMPLOYMENT",NSL Services Group Ltd,CONSULTANCY FEES," 289,010.51 ",Consultancy.Business.NA,Q3
09/11/2016,"NEIGHBOURHOODS, ENVIRONMENT & EMPLOYMENT",NSL Services Group Ltd,CONSULTANCY FEES," 283,798.52 ",Consultancy.Business.NA,Q3
04/11/2016,HOUSING SERVICES (HRA),Keepmoat Regeneration Ltd,"MAINTENANCE - EQUIPMENT, FURNITURE AND MATERIALS"," 275,641.00 ","Works - Construction, Repair & Maint.Buildings.Construction",Q3
08/11/2016,Pensions All CCs,Majedie Asset Management Ltd,PROFESSIONAL SERVICES - GENERAL," 274,268.40 ",Financial Services.Pension Funds.NA,Q3
08/11/2016,Pensions All CCs,Majedie Asset Management Ltd,PROFESSIONAL SERVICES - GENERAL," 264,132.23 ",Financial Services.Pension Funds.NA,Q3
21/11/2016,CAPITAL CC,Breyer Group Plc_d,"MAINTENANCE - EQUIPMENT, FURNITURE AND MATERIALS"," 262,265.07 ","Works - Construction, Repair & Maint.Buildings.Construction",Q3
23/11/2016,CAPITAL CC,Carillion Capital Projects Ltd_d,BUILDING ALTERATIONS AND MATERIALS," 256,122.09 ","Works - Construction, Repair & Maint.Buildings.Construction",Q3
28/11/2016,CAPITAL CC,Breyer Group Plc_d,"MAINTENANCE - EQUIPMENT, FURNITURE AND MATERIALS"," 252,545.34 ","Works - Construction, Repair & Maint.Buildings.Construction",Q3
12/10/2016,CAPITAL CC,Mitie Property Services (UK) Ltd_d,"MAINTENANCE - EQUIPMENT, FURNITURE AND MATERIALS"," 250,126.37 ","Works - Construction, Repair & Maint.Buildings.Construction",Q3
04/11/2016,HOUSING SERVICES (HRA),Mears Ltd,FACILITIES MANAGEMENT," 249,982.83 ","Works - Construction, Repair & Maint.Buildings.Repair & Maintenance",Q3
05/12/2016,HOUSING SERVICES (HRA),Mears Ltd,FACILITIES MANAGEMENT," 249,903.58 ","Works - Construction, Repair & Maint.Buildings.Repair & Maintenance",Q3
22/12/2016,HOUSING SERVICES (HRA),Mears Ltd,FACILITIES MANAGEMENT," 249,903.58 ","Works - Construction, Repair & Maint.Buildings.Repair & Maintenance",Q3
21/12/2016,ADULT SOCIAL CARE,Windmill Care Centre,NURSING HOMES - PRIVATE CONTRACTORS PAYMENT," 249,798.00 ",Social Community Care Supplies & Service.Adult.Nursing Homes,Q3
25/11/2016,BUSINESS & CUSTOMER SERVICES,London Councils,MEMBERSHIP AND SUBSCRIPTIONS," 245,724.00 ",Financial Services.Subscriptions.NA,Q3
20/12/2016,CAPITAL CC,T Brown Group Ltd_d,BUILDING ALTERATIONS AND MATERIALS," 244,838.09 ",Building Construction Materials.Heating & Air Conditioning.NA,Q3
31/10/2016,BUSINESS TRANSFORMATION,Swiss Post Solutions Ltd,PRINTING," 244,614.42 ",Facilities & Management Services.Printing.NA,Q3
27/10/2016,CAPITAL CC,Keepmoat Regeneration Ltd,"MAINTENANCE - EQUIPMENT, FURNITURE AND MATERIALS"," 242,076.09 ","Works - Construction, Repair & Maint.Buildings.Construction",Q3
28/12/2016,CAPITAL CC,Keepmoat Regeneration Ltd,"MAINTENANCE - EQUIPMENT, FURNITURE AND MATERIALS"," 237,869.92 ","Works - Construction, Repair & Maint.Buildings.Construction",Q3
07/11/2016,CAPITAL CC,Jubilee Gardens Trust,OPEN SPACES WORKS," 237,609.11 ","Works - Construction, Repair & Maint.Open Spaces.NA",Q3
03/11/2016,ADULT SOCIAL CARE,Age UK Lambeth,PRIVATE CONTRACTORS PAYMENT - OTHER," 237,216.00 ",Social Community Care Supplies & Service.Adult.NA,Q3
28/10/2016,ADULT SOCIAL CARE,Windmill Care Centre,NURSING HOMES - PRIVATE CONTRACTORS PAYMENT," 232,765.71 ",Social Community Care Supplies & Service.Adult.Nursing Homes,Q3
21/10/2016,CAPITAL CC,T Brown Group Ltd_d,BUILDING ALTERATIONS AND MATERIALS," 229,870.76 ",Building Construction Materials.Heating & Air Conditioning.NA,Q3
24/10/2016,EDUCATION & LEARNING,Veolia ES (UK) Ltd,DIRECT TRANSPORT," 227,275.26 ",Public Transport.Passenger Transport.NA,Q3
06/12/2016,EDUCATION & LEARNING,Veolia ES (UK) Ltd,DIRECT TRANSPORT," 227,275.26 ",Public Transport.Passenger Transport.NA,Q3
21/12/2016,EDUCATION & LEARNING,Veolia ES (UK) Ltd,DIRECT TRANSPORT," 227,275.26 ",Public Transport.Passenger Transport.NA,Q3
28/11/2016,ADULT SOCIAL CARE,Windmill Care Centre,NURSING HOMES - PRIVATE CONTRACTORS PAYMENT," 225,257.14 ",Social Community Care Supplies & Service.Adult.Nursing Homes,Q3
15/12/2016,CAPITAL CC,Keepmoat Regeneration Ltd,"MAINTENANCE - EQUIPMENT, FURNITURE AND MATERIALS"," 222,176.89 ","Works - Construction, Repair & Maint.Buildings.Construction",Q3
26/10/2016,"NEIGHBOURHOODS, ENVIRONMENT & EMPLOYMENT",Lambeth Lighting Services,"PURCHASE - EQUIPMENT, FURNITURE AND MATERIALS"," 221,740.56 ",Highway Equipment & Materials.Street Lighting.NA,Q3
04/11/2016,"NEIGHBOURHOODS, ENVIRONMENT & EMPLOYMENT",Lambeth Lighting Services,"PURCHASE - EQUIPMENT, FURNITURE AND MATERIALS"," 221,740.56 ",Highway Equipment & Materials.Street Lighting.NA,Q3
09/12/2016,"NEIGHBOURHOODS, ENVIRONMENT & EMPLOYMENT",Lambeth Lighting Services,"PURCHASE - EQUIPMENT, FURNITURE AND MATERIALS"," 221,740.56 ",Highway Equipment & Materials.Street Lighting.NA,Q3
15/12/2016,CAPITAL CC,Keepmoat Regeneration Ltd,"MAINTENANCE - EQUIPMENT, FURNITURE AND MATERIALS"," 221,576.38 ","Works - Construction, Repair & Maint.Buildings.Construction",Q3
24/10/2016,CAPITAL CC,T Brown Group Ltd_d,BUILDING ALTERATIONS AND MATERIALS," 221,334.45 ",Building Construction Materials.Heating & Air Conditioning.NA,Q3
21/12/2016,ADULT SOCIAL CARE,Limetree Healthcare Ltd,NURSING HOMES - PRIVATE CONTRACTORS PAYMENT," 221,145.15 ",Social Community Care Supplies & Service.Adult.Nursing Homes,Q3
20/10/2016,HOUSING SERVICES (HRA),Morrison Facilities Services Ltd_d,CLEANING SERVICES," 219,061.73 ",Cleaning & Janitorial.Cleaning Service.External,Q3
23/11/2016,HOUSING SERVICES (HRA),Morrison Facilities Services Ltd_d,CLEANING SERVICES," 219,061.73 ",Cleaning & Janitorial.Cleaning Service.External,Q3
22/12/2016,HOUSING SERVICES (HRA),Morrison Facilities Services Ltd_d,CLEANING SERVICES," 219,061.73 ",Cleaning & Janitorial.Cleaning Service.External,Q3
11/10/2016,MAJOR CAPITAL PROGRAMMES,Focus Education (Lambeth) Ltd,PROFESSIONAL SERVICES - GENERAL," 210,173.19 ",Education.School Services.NA,Q3
21/11/2016,MAJOR CAPITAL PROGRAMMES,Focus Education (Lambeth) Ltd,PROFESSIONAL SERVICES - GENERAL," 210,173.19 ",Education.School Services.NA,Q3
28/11/2016,CAPITAL CC,Keepmoat Regeneration Ltd,"MAINTENANCE - EQUIPMENT, FURNITURE AND MATERIALS"," 206,703.94 ","Works - Construction, Repair & Maint.Buildings.Construction",Q3
27/12/2016,CAPITAL CC,Blakedown Sport & Play Ltd_d,OPEN SPACES WORKS," 206,388.00 ","Works - Construction, Repair & Maint.Open Spaces.NA",Q3
28/10/2016,ADULT SOCIAL CARE,Limetree Healthcare Ltd,NURSING HOMES - PRIVATE CONTRACTORS PAYMENT," 206,052.57 ",Social Community Care Supplies & Service.Adult.Nursing Homes,Q3
19/12/2016,CAPITAL CC,Breyer Group Plc_d,"MAINTENANCE - EQUIPMENT, FURNITURE AND MATERIALS"," 205,779.22 ","Works - Construction, Repair & Maint.Buildings.Construction",Q3
28/10/2016,CAPITAL CC,Keepmoat Regeneration Ltd,"MAINTENANCE - EQUIPMENT, FURNITURE AND MATERIALS"," 204,971.55 ","Works - Construction, Repair & Maint.Buildings.Construction",Q3
28/12/2016,CAPITAL CC,Keepmoat Regeneration Ltd,"MAINTENANCE - EQUIPMENT, FURNITURE AND MATERIALS"," 204,549.63 ","Works - Construction, Repair & Maint.Buildings.Construction",Q3
21/12/2016,ADULT SOCIAL CARE,Norcrest (2000) Home Ltd,RESIDENTIAL PLACEMENTS - PRIVATE CONTRACTORS PAYMENT," 202,807.97 ",Social Community Care Supplies & Service.Adult.Residential Care,Q3
28/11/2016,ADULT SOCIAL CARE,Limetree Healthcare Ltd,NURSING HOMES - PRIVATE CONTRACTORS PAYMENT," 199,405.71 ",Social Community Care Supplies & Service.Adult.Nursing Homes,Q3
27/12/2016,CAPITAL CC,Keepmoat Regeneration Ltd,"MAINTENANCE - EQUIPMENT, FURNITURE AND MATERIALS"," 198,935.29 ","Works - Construction, Repair & Maint.Buildings.Construction",Q3
29/11/2016,CAPITAL CC,Frankham Consultancy Group Ltd,CONSULTANCY FEES," 197,500.00 ","Works - Construction, Repair & Maint.Consultancy.NA",Q3
30/11/2016,CAPITAL CC,Frankham Consultancy Group Ltd,CONSULTANCY FEES," 197,500.00 ","Works - Construction, Repair & Maint.Consultancy.NA",Q3
29/11/2016,CAPITAL CC,Frankham Consultancy Group Ltd,CONSULTANCY FEES," 196,299.16 ","Works - Construction, Repair & Maint.Consultancy.NA",Q3
30/11/2016,CAPITAL CC,Frankham Consultancy Group Ltd,CONSULTANCY FEES," 196,299.16 ","Works - Construction, Repair & Maint.Consultancy.NA",Q3
29/11/2016,CAPITAL CC,Keepmoat Regeneration Ltd,"MAINTENANCE - EQUIPMENT, FURNITURE AND MATERIALS"," 194,023.87 ","Works - Construction, Repair & Maint.Buildings.Construction",Q3
15/12/2016,CAPITAL CC,Mulalley & Co Ltd,"MAINTENANCE - EQUIPMENT, FURNITURE AND MATERIALS"," 191,138.21 ","Works - Construction, Repair & Maint.Buildings.Construction",Q3
16/12/2016,CAPITAL CC,Frankham Consultancy Group Ltd,CONSULTANCY FEES," 190,649.21 ","Works - Construction, Repair & Maint.Consultancy.NA",Q3
16/12/2016,CAPITAL CC,Frankham Consultancy Group Ltd,CONSULTANCY FEES," 190,649.21 ","Works - Construction, Repair & Maint.Consultancy.NA",Q3
08/12/2016,"NEIGHBOURHOODS, ENVIRONMENT & EMPLOYMENT",F M Conway Ltd_d,"MAINTENANCE - EQUIPMENT, FURNITURE AND MATERIALS"," 188,653.94 ","Works - Construction, Repair & Maint.Roads.Repair & Maintenance",Q3
21/12/2016,ADULT SOCIAL CARE,Queens Oak Care Centre,NURSING HOMES - PRIVATE CONTRACTORS PAYMENT," 185,873.78 ",Social Community Care Supplies & Service.Adult.Nursing Homes,Q3
10/10/2016,CAPITAL CC,Lakehouse Contracts Ltd_d,"MAINTENANCE - EQUIPMENT, FURNITURE AND MATERIALS"," 184,933.51 ","Works - Construction, Repair & Maint.Buildings.Construction",Q3
05/12/2016,ADULT SOCIAL CARE,Allied Healthcare (UK) Ltd,DOMICILIARY CARE - THIRD PARTY," 175,711.72 ",Social Community Care Supplies & Service.Adult.Domiciliary Care,Q3
12/12/2016,"STRATEGIC HOUSING, REGENERATION & COMMUNITIES (HRA)",Chartwell Properties Ltd,RENTS PAYABLE," 173,700.00 ",Financial Services.Rents.NA,Q3
14/11/2016,CAPITAL CC,Mulalley & Co Ltd,"MAINTENANCE - EQUIPMENT, FURNITURE AND MATERIALS"," 173,212.12 ","Works - Construction, Repair & Maint.Buildings.Construction",Q3
28/10/2016,ADULT SOCIAL CARE,Queens Oak Care Centre,NURSING HOMES - PRIVATE CONTRACTORS PAYMENT," 173,139.43 ",Social Community Care Supplies & Service.Adult.Nursing Homes,Q3
10/11/2016,PUBLIC HEALTH,Chelsea & Westminster Hospital NHS Foundation Trust,PAYMENT TO HEALTH AUTHORITIES," 172,688.53 ",Healthcare.Public Health.NA,Q3
15/11/2016,PUBLIC HEALTH,Chelsea & Westminster Hospital NHS Foundation Trust,PAYMENT TO HEALTH AUTHORITIES," 172,688.53 ",Healthcare.Public Health.NA,Q3
16/12/2016,PUBLIC HEALTH,Chelsea & Westminster Hospital NHS Foundation Trust,PAYMENT TO HEALTH AUTHORITIES," 172,688.53 ",Healthcare.Public Health.NA,Q3
24/11/2016,CAPITAL CC,T Brown Group Ltd_d,BUILDING ALTERATIONS AND MATERIALS," 172,643.42 ",Building Construction Materials.Heating & Air Conditioning.NA,Q3
10/10/2016,ADULT SOCIAL CARE,Allied Healthcare (UK) Ltd,DOMICILIARY CARE - THIRD PARTY," 171,045.52 ",Social Community Care Supplies & Service.Adult.Domiciliary Care,Q3
07/11/2016,ADULT SOCIAL CARE,Allied Healthcare (UK) Ltd,DOMICILIARY CARE - THIRD PARTY," 170,614.37 ",Social Community Care Supplies & Service.Adult.Domiciliary Care,Q3
28/11/2016,BUSINESS TRANSFORMATION,Swiss Post Solutions Ltd,PRINTING," 169,461.81 ",Facilities & Management Services.Printing.NA,Q3
28/11/2016,ADULT SOCIAL CARE,Queens Oak Care Centre,NURSING HOMES - PRIVATE CONTRACTORS PAYMENT," 167,554.29 ",Social Community Care Supplies & Service.Adult.Nursing Homes,Q3
28/11/2016,CAPITAL CC,Keepmoat Regeneration Ltd,"MAINTENANCE - EQUIPMENT, FURNITURE AND MATERIALS"," 164,047.77 ","Works - Construction, Repair & Maint.Buildings.Construction",Q3
28/12/2016,CAPITAL CC,Keepmoat Regeneration Ltd,"MAINTENANCE - EQUIPMENT, FURNITURE AND MATERIALS"," 162,376.16 ","Works - Construction, Repair & Maint.Buildings.Construction",Q3
28/12/2016,ADULT SOCIAL CARE,Medequip Assistive Technology Ltd,SPECIALIST EQUIPMENT FOR SERVICE PROVISION," 161,393.43 ",Social Community Care Supplies & Service.Supplies.Equipment,Q3
28/11/2016,ADULT SOCIAL CARE,Medequip Assistive Technology Ltd,SPECIALIST EQUIPMENT FOR SERVICE PROVISION," 159,549.32 ",Social Community Care Supplies & Service.Supplies.Equipment,Q3
19/10/2016,CAPITAL CC,Mitie Property Services (UK) Ltd_d,"MAINTENANCE - EQUIPMENT, FURNITURE AND MATERIALS"," 158,393.22 ","Works - Construction, Repair & Maint.Buildings.Construction",Q3
24/10/2016,"NEIGHBOURHOODS, ENVIRONMENT & EMPLOYMENT",Veolia ES (UK) Ltd,REFUSE COLLECTION," 156,444.50 ",Environmental Services.Waste Management.Waste Collection for Recycling,Q3
29/11/2016,"NEIGHBOURHOODS, ENVIRONMENT & EMPLOYMENT",Veolia ES (UK) Ltd,REFUSE COLLECTION," 156,444.50 ",Environmental Services.Waste Management.Waste Collection for Recycling,Q3
21/12/2016,"NEIGHBOURHOODS, ENVIRONMENT & EMPLOYMENT",Veolia ES (UK) Ltd,REFUSE COLLECTION," 156,444.50 ",Environmental Services.Waste Management.Waste Collection for Recycling,Q3
13/12/2016,CAPITAL CC,Mears Ltd,FACILITIES MANAGEMENT," 154,719.30 ","Works - Construction, Repair & Maint.Buildings.Repair & Maintenance",Q3
28/10/2016,ADULT SOCIAL CARE,Medequip Assistive Technology Ltd,SPECIALIST EQUIPMENT FOR SERVICE PROVISION," 153,513.07 ",Social Community Care Supplies & Service.Supplies.Equipment,Q3
10/11/2016,CAPITAL CC,Mulalley & Co Ltd,FACILITIES MANAGEMENT," 152,742.21 ","Works - Construction, Repair & Maint.Buildings.Repair & Maintenance",Q3
10/11/2016,CAPITAL CC,Mulalley & Co Ltd,FACILITIES MANAGEMENT," 152,742.21 ","Works - Construction, Repair & Maint.Buildings.Repair & Maintenance",Q3
16/11/2016,Pensions All CCs,Insight Investment,PROFESSIONAL SERVICES - GENERAL," 152,028.68 ",Financial Services.Investments.NA,Q3
04/11/2016,BUSINESS & CUSTOMER SERVICES,Bbh-lsl (Fundco 4) Ltd,PAYMENT TO PRIVATE SECTOR LANDLORDS (PSL)," 151,899.17 ",Housing Management.Letting Agents.NA,Q3
20/12/2016,BUSINESS & CUSTOMER SERVICES,Bbh-lsl (Fundco 4) Ltd,PAYMENT TO PRIVATE SECTOR LANDLORDS (PSL)," 151,899.17 ",Housing Management.Letting Agents.NA,Q3
29/12/2016,BUSINESS & CUSTOMER SERVICES,Bbh-lsl (Fundco 4) Ltd,PAYMENT TO PRIVATE SECTOR LANDLORDS (PSL)," 151,899.17 ",Housing Management.Letting Agents.NA,Q3
14/11/2016,ADULT SOCIAL CARE,Aspire Wellbeing,DAYCARE - PRIVATE CONTRACTORS PAYMENT," 144,740.00 ",Social Community Care Supplies & Service.Adult.Day Care,Q3
14/11/2016,ADULT SOCIAL CARE,Aspire Wellbeing,DAYCARE - PRIVATE CONTRACTORS PAYMENT," 144,740.00 ",Social Community Care Supplies & Service.Adult.Day Care,Q3
16/11/2016,SENIOR MANAGEMENT - ADULTS & PUBLIC HEALTH,Veolia ES (UK) Ltd,WASTE DISPOSAL COSTS," 143,095.50 ",Environmental Services.Waste Management.NA,Q3
16/11/2016,"NEIGHBOURHOODS, ENVIRONMENT & EMPLOYMENT",Veolia ES (UK) Ltd,REFUSE COLLECTION," 143,095.50 ",Environmental Services.Waste Management.Waste Collection,Q3
25/10/2016,Pensions All CCs,Insight Investment,PROFESSIONAL SERVICES - GENERAL," 140,365.11 ",Financial Services.Investments.NA,Q3
20/12/2016,CENTRAL HRA BUDGETS,Loughborough EMB Ltd,ELECTRICITY," 137,911.00 ",Housing Management.Arms Length Management Organisations.NA,Q3
07/11/2016,CAPITAL CC,Breyer Group Plc_d,"MAINTENANCE - EQUIPMENT, FURNITURE AND MATERIALS"," 137,432.72 ","Works - Construction, Repair & Maint.Buildings.Construction",Q3
30/11/2016,ADULT SOCIAL CARE,Windmill Care Centre,NURSING HOMES - PRIVATE CONTRACTORS PAYMENT," 134,060.58 ",Social Community Care Supplies & Service.Adult.Nursing Homes,Q3
29/11/2016,CAPITAL CC,Frankham Consultancy Group Ltd,CONSULTANCY FEES," 133,485.00 ","Works - Construction, Repair & Maint.Consultancy.NA",Q3
16/12/2016,CAPITAL CC,Frankham Consultancy Group Ltd,CONSULTANCY FEES," 133,485.00 ","Works - Construction, Repair & Maint.Consultancy.NA",Q3
15/12/2016,BUSINESS TRANSFORMATION,British Telecommunications plc,LAND LINE TELEPHONE COSTS," 133,071.78 ",Information Communication Technology.Telecommunications.NA,Q3
17/11/2016,HOUSING SERVICES (HRA),General Dynamics Information Technology Ltd,ICT MAINTENANCE AND SUPPORT," 132,916.00 ",Information Communication Technology.Services.Application Service Provision,Q3
18/11/2016,HOUSING SERVICES (HRA),General Dynamics Information Technology Ltd,ICT MAINTENANCE AND SUPPORT," 132,916.00 ",Information Communication Technology.Services.Application Service Provision,Q3
31/10/2016,BUSINESS & CUSTOMER SERVICES,Lancedrum Ltd,RENTS PAYABLE," 128,038.45 ",Financial Services.Rents.NA,Q3
07/11/2016,CAPITAL CC,Kier Construction Ltd,"MAINTENANCE - EQUIPMENT, FURNITURE AND MATERIALS"," 126,476.12 ","Works - Construction, Repair & Maint.Buildings.Construction",Q3
13/12/2016,CAPITAL CC,Breyer Group Plc_d,"MAINTENANCE - EQUIPMENT, FURNITURE AND MATERIALS"," 126,191.26 ","Works - Construction, Repair & Maint.Buildings.Construction",Q3
29/12/2016,CAPITAL CC,Breyer Group Plc_d,"MAINTENANCE - EQUIPMENT, FURNITURE AND MATERIALS"," 125,919.77 ","Works - Construction, Repair & Maint.Buildings.Construction",Q3
10/11/2016,PUBLIC HEALTH,Chelsea & Westminster Hospital NHS Foundation Trust,PAYMENT TO HEALTH AUTHORITIES," 125,729.53 ",Healthcare.Public Health.NA,Q3
28/11/2016,BUSINESS TRANSFORMATION,Telefonica (UK) Ltd,LAND LINE TELEPHONE COSTS," 125,683.82 ",Information Communication Technology.Telecommunications.NA,Q3
21/12/2016,CAPITAL CC,T Brown Group Ltd_d,BUILDING ALTERATIONS AND MATERIALS," 125,602.99 ",Building Construction Materials.Heating & Air Conditioning.NA,Q3
21/11/2016,PUBLIC HEALTH,Mildmay Hospital UK,PAYMENT TO HEALTH AUTHORITIES," 123,488.00 ",Healthcare.Public Health.NA,Q3
24/11/2016,"PLANNING, TRANSPORT & DEVELOPMENT",Cycle Confident Ltd,ARTS AND LEISURE COSTS," 123,007.00 ",Arts & Leisure Services.Sport & Fitness.NA,Q3
27/10/2016,CAPITAL CC,Keepmoat Regeneration Ltd,"MAINTENANCE - EQUIPMENT, FURNITURE AND MATERIALS"," 122,146.21 ","Works - Construction, Repair & Maint.Buildings.Construction",Q3
02/11/2016,"STRATEGIC HOUSING, REGENERATION & COMMUNITIES",Ekaya Housing Association Ltd,PRIVATE CONTRACTORS PAYMENT - OTHER," 122,083.20 ","Social Community Care Supplies & Service.Adult.Temporary Accommodation, Long Stay",Q3
17/10/2016,CAPITAL CC,Mitie Property Services (UK) Ltd_d,"MAINTENANCE - EQUIPMENT, FURNITURE AND MATERIALS"," 121,932.35 ","Works - Construction, Repair & Maint.Buildings.Construction",Q3
31/10/2016,CAPITAL CC,Keepmoat Regeneration Ltd,"MAINTENANCE - EQUIPMENT, FURNITURE AND MATERIALS"," 120,412.33 ","Works - Construction, Repair & Maint.Buildings.Construction",Q3
27/10/2016,CAPITAL CC,Elliott Group Limited,"MAINTENANCE - EQUIPMENT, FURNITURE AND MATERIALS"," 120,000.00 ","Works - Construction, Repair & Maint.Buildings.Construction",Q3
30/11/2016,ADULT SOCIAL CARE,Limetree Healthcare Ltd,NURSING HOMES - PRIVATE CONTRACTORS PAYMENT," 118,793.14 ",Social Community Care Supplies & Service.Adult.Nursing Homes,Q3
23/11/2016,PUBLIC HEALTH,The Metro Centre Ltd,PAYMENT TO HEALTH AUTHORITIES," 118,284.50 ",Healthcare.Public Health.NA,Q3
23/11/2016,CAPITAL CC,T Brown Group Ltd_d,BUILDING ALTERATIONS AND MATERIALS," 117,835.76 ",Building Construction Materials.Heating & Air Conditioning.NA,Q3
30/11/2016,BUSINESS & CUSTOMER SERVICES,Cofely Workplace Ltd,SECURITY SERVICES (EXCLUDING PREMISES)," 117,363.72 ",Facilities & Management Services.Security.NA,Q3
05/12/2016,CAPITAL CC,Kier Construction Ltd,"MAINTENANCE - EQUIPMENT, FURNITURE AND MATERIALS"," 116,442.47 ","Works - Construction, Repair & Maint.Buildings.Construction",Q3
01/11/2016,PUBLIC HEALTH,London Community Rehabilitation Company,PRIVATE CONTRACTORS PAYMENT - OTHER," 116,308.00 ",Social Community Care Supplies & Service.Adult.Advice & Counselling Services,Q3
27/10/2016,CAPITAL CC,Kier Construction Ltd,"MAINTENANCE - EQUIPMENT, FURNITURE AND MATERIALS"," 115,990.30 ","Works - Construction, Repair & Maint.Buildings.Construction",Q3
30/11/2016,BUSINESS & CUSTOMER SERVICES,Cofely Workplace Ltd,FACILITIES MANAGEMENT," 114,911.88 ","Works - Construction, Repair & Maint.Buildings.Repair & Maintenance",Q3
09/11/2016,"NEIGHBOURHOODS, ENVIRONMENT & EMPLOYMENT",NSL Services Group Ltd,CONSULTANCY FEES," 114,714.94 ",Consultancy.Business.NA,Q3
13/12/2016,"NEIGHBOURHOODS, ENVIRONMENT & EMPLOYMENT",NSL Services Group Ltd,CONSULTANCY FEES," 114,714.94 ",Consultancy.Business.NA,Q3
15/12/2016,CAPITAL CC,Mears Ltd,FACILITIES MANAGEMENT," 114,318.69 ","Works - Construction, Repair & Maint.Buildings.Repair & Maintenance",Q3
23/12/2016,BUSINESS & CUSTOMER SERVICES,Cofely Workplace Ltd,SECURITY SERVICES (EXCLUDING PREMISES)," 114,131.92 ",Facilities & Management Services.Security.NA,Q3
21/10/2016,CAPITAL CC,Breyer Group Plc_d,"MAINTENANCE - EQUIPMENT, FURNITURE AND MATERIALS"," 113,621.79 ","Works - Construction, Repair & Maint.Buildings.Construction",Q3
28/10/2016,ADULT SOCIAL CARE,CMG Homes Ltd,SUPPORTED OTHER ACCOMMODATION - PRIVATE CONTRACTORS PAYMENT," 113,329.29 ",Social Community Care Supplies & Service.Adult.Residential Care,Q3
12/10/2016,CAPITAL CC,Mitie Property Services (UK) Ltd_d,"MAINTENANCE - EQUIPMENT, FURNITURE AND MATERIALS"," 111,682.96 ","Works - Construction, Repair & Maint.Buildings.Construction",Q3
22/11/2016,PUBLIC HEALTH,The Metro Centre Ltd,PAYMENT TO HEALTH AUTHORITIES," 111,187.43 ",Healthcare.Public Health.NA,Q3
27/10/2016,CENTRAL HRA BUDGETS,Russell-Cooke Solicitors,LEGAL FEES," 111,075.00 ",Legal Services.Legal Opinion.NA,Q3
25/11/2016,CAPITAL CC,Kier Construction Ltd,FACILITIES MANAGEMENT," 110,168.28 ","Works - Construction, Repair & Maint.Buildings.Repair & Maintenance",Q3
03/11/2016,CAPITAL CC,Sandwood Design & Build Ltd,"MAINTENANCE - EQUIPMENT, FURNITURE AND MATERIALS"," 110,095.00 ","Works - Construction, Repair & Maint.Buildings.Construction",Q3
09/11/2016,CAPITAL CC,Precision Lift Services Ltd_d,CYCLICAL/PLANNED MAINTENANCE - MECHANICAL AND ELECTRICAL," 108,219.63 ",Facilities & Management Services.Lifts.NA,Q3
21/12/2016,ADULT SOCIAL CARE,Leonard Cheshire Disability,RESIDENTIAL PLACEMENTS - PRIVATE CONTRACTORS PAYMENT," 107,205.42 ",Social Community Care Supplies & Service.Adult.Nursing Homes,Q3
16/12/2016,CAPITAL CC,Frankham Consultancy Group Ltd,CONSULTANCY FEES," 107,066.63 ","Works - Construction, Repair & Maint.Consultancy.NA",Q3
16/12/2016,CAPITAL CC,Frankham Consultancy Group Ltd,CONSULTANCY FEES," 107,066.63 ","Works - Construction, Repair & Maint.Consultancy.NA",Q3
21/12/2016,BUSINESS TRANSFORMATION,PricewaterhouseCoopers LLP,AUDIT FEES," 105,000.00 ",Financial Services.Audit.NA,Q3
21/12/2016,BUSINESS TRANSFORMATION,PricewaterhouseCoopers LLP,AUDIT FEES," 105,000.00 ",Financial Services.Audit.NA,Q3
23/12/2016,BUSINESS & CUSTOMER SERVICES,Cofely Workplace Ltd,FACILITIES MANAGEMENT," 104,162.55 ","Works - Construction, Repair & Maint.Buildings.Repair & Maintenance",Q3
31/10/2016,CORPORATE ITEMS,London Borough of Southwark,PAYMENT TO HEALTH AUTHORITIES," 100,949.17 ",Healthcare.Public Health.NA,Q3
30/11/2016,ADULT SOCIAL CARE,Queens Oak Care Centre,NURSING HOMES - PRIVATE CONTRACTORS PAYMENT," 100,231.72 ",Social Community Care Supplies & Service.Adult.Nursing Homes,Q3
30/12/2016,CHILDREN'S SERVICES,Swanstaff Recruitment Ltd,STAFF RECRUITMENT COSTS," 100,000.00 ",Human Resources.Recruitment & Assessment.NA,Q3
17/10/2016,"NEIGHBOURHOODS, ENVIRONMENT & EMPLOYMENT",City Suburban Tree Surgeons Ltd,OPEN SPACES WORKS," 99,689.22 ","Works - Construction, Repair & Maint.Open Spaces.Repair & Maintenance",Q3
03/11/2016,"NEIGHBOURHOODS, ENVIRONMENT & EMPLOYMENT",TfL Surface Transport,VEHICLE REPAIRS AND MAINTENANCE," 99,352.81 ",Public Transport.Maintenance.NA,Q3
09/12/2016,CAPITAL CC,Keepmoat Regeneration Ltd,"MAINTENANCE - EQUIPMENT, FURNITURE AND MATERIALS"," 99,220.10 ","Works - Construction, Repair & Maint.Buildings.Construction",Q3
20/12/2016,CHILDREN'S SERVICES,Liberty House,RESIDENTIAL PLACEMENTS - PRIVATE CONTRACTORS PAYMENT," 97,714.28 ",Social Community Care Supplies & Service.Children.Residential Care,Q3
15/11/2016,BUSINESS & CUSTOMER SERVICES,Cofely Workplace Ltd,SECURITY SERVICES (EXCLUDING PREMISES)," 97,373.96 ",Facilities & Management Services.Security.NA,Q3
20/10/2016,CAPITAL CC,T Brown Group Ltd_d,BUILDING ALTERATIONS AND MATERIALS," 96,213.30 ",Building Construction Materials.Heating & Air Conditioning.NA,Q3
06/12/2016,CAPITAL CC,Blakedown Sport & Play Ltd_d,OPEN SPACES WORKS," 95,278.00 ","Works - Construction, Repair & Maint.Open Spaces.NA",Q3
11/11/2016,CAPITAL CC,Mitie Property Services (UK) Ltd_d,"MAINTENANCE - EQUIPMENT, FURNITURE AND MATERIALS"," 93,028.82 ","Works - Construction, Repair & Maint.Buildings.Construction",Q3
07/10/2016,EDUCATION & LEARNING,Lambeth College,GRANTS AND CONTRIBUTIONS," 93,000.00 ",Financial Services.Grants.NA,Q3
28/10/2016,ADULT SOCIAL CARE,Astra Homes Ltd,RESIDENTIAL PLACEMENTS - PRIVATE CONTRACTORS PAYMENT," 89,655.43 ",Social Community Care Supplies & Service.Adult.Residential Care,Q3
04/10/2016,HOUSING SERVICES (HRA),Oco Ltd_d,RESPONSIVE REPAIRS - MECHANICAL AND ELECTRICAL," 89,595.35 ",Building Construction Materials.Heating & Air Conditioning.NA,Q3
08/11/2016,HOUSING SERVICES (HRA),Oco Ltd_d,RESPONSIVE REPAIRS - MECHANICAL AND ELECTRICAL," 89,595.35 ",Building Construction Materials.Heating & Air Conditioning.NA,Q3
23/12/2016,HOUSING SERVICES (HRA),Oco Ltd_d,RESPONSIVE REPAIRS - MECHANICAL AND ELECTRICAL," 89,595.35 ",Building Construction Materials.Heating & Air Conditioning.NA,Q3
29/12/2016,HOUSING SERVICES (HRA),Oco Ltd_d,RESPONSIVE REPAIRS - MECHANICAL AND ELECTRICAL," 89,595.35 ",Building Construction Materials.Heating & Air Conditioning.NA,Q3
05/12/2016,ADULT SOCIAL CARE,Riverside ECHG,PRIVATE CONTRACTORS PAYMENT - OTHER," 88,897.83 ",Social Community Care Supplies & Service.Adult.Sheltered Accommodation,Q3
10/11/2016,CAPITAL CC,Mulalley & Co Ltd,FACILITIES MANAGEMENT," 87,442.58 ","Works - Construction, Repair & Maint.Buildings.Repair & Maintenance",Q3
10/11/2016,CAPITAL CC,Mulalley & Co Ltd,FACILITIES MANAGEMENT," 87,442.58 ","Works - Construction, Repair & Maint.Buildings.Repair & Maintenance",Q3
27/12/2016,PUBLIC HEALTH,Women In Prison,ASYLUM SEEKERS - PRIVATE CONTRACTORS PAYMENT," 86,878.00 ",Social Community Care Supplies & Service.Adult.Asylum Seekers Services,Q3
25/10/2016,BUSINESS TRANSFORMATION,PricewaterhouseCoopers LLP,AUDIT FEES," 85,000.00 ",Financial Services.Audit.NA,Q3
25/10/2016,BUSINESS TRANSFORMATION,PricewaterhouseCoopers LLP,AUDIT FEES," 85,000.00 ",Financial Services.Audit.NA,Q3
21/11/2016,BUSINESS TRANSFORMATION,Virgin Media Business,LAND LINE TELEPHONE COSTS," 84,898.00 ",Information Communication Technology.Telecommunications.NA,Q3
14/11/2016,CAPITAL CC,Mulalley & Co Ltd,"MAINTENANCE - EQUIPMENT, FURNITURE AND MATERIALS"," 84,340.69 ","Works - Construction, Repair & Maint.Buildings.Construction",Q3
26/10/2016,CORPORATE ITEMS,London Councils,MEMBERSHIP AND SUBSCRIPTIONS," 83,853.00 ",Financial Services.Subscriptions.NA,Q3
09/11/2016,CAPITAL CC,Tibbalds Planning and Urban Design Ltd,CONSULTANCY FEES," 83,464.09 ","Works - Construction, Repair & Maint.Consultancy.NA",Q3
11/11/2016,"NEIGHBOURHOODS, ENVIRONMENT & EMPLOYMENT",F M Conway Ltd_d,"MAINTENANCE - EQUIPMENT, FURNITURE AND MATERIALS"," 82,332.65 ","Works - Construction, Repair & Maint.Roads.Repair & Maintenance",Q3
21/12/2016,ADULT SOCIAL CARE,Queens Oak Care Centre,RESIDENTIAL PLACEMENTS - PRIVATE CONTRACTORS PAYMENT," 81,910.85 ",Social Community Care Supplies & Service.Adult.Nursing Homes,Q3
15/11/2016,BUSINESS & CUSTOMER SERVICES,Cofely Workplace Ltd,FACILITIES MANAGEMENT," 81,628.21 ","Works - Construction, Repair & Maint.Buildings.Repair & Maintenance",Q3
23/12/2016,HOUSING SERVICES (HRA),T Brown Group Ltd_d,RESPONSIVE REPAIRS - MECHANICAL AND ELECTRICAL," 81,463.56 ",Building Construction Materials.Heating & Air Conditioning.NA,Q3
23/12/2016,HOUSING SERVICES (HRA),T Brown Group Ltd_d,RESPONSIVE REPAIRS - MECHANICAL AND ELECTRICAL," 81,463.56 ",Building Construction Materials.Heating & Air Conditioning.NA,Q3
29/12/2016,HOUSING SERVICES (HRA),T Brown Group Ltd_d,RESPONSIVE REPAIRS - MECHANICAL AND ELECTRICAL," 81,463.56 ",Building Construction Materials.Heating & Air Conditioning.NA,Q3
10/11/2016,HOUSING SERVICES (HRA),T Brown Group Ltd_d,RESPONSIVE REPAIRS - MECHANICAL AND ELECTRICAL," 81,314.62 ",Building Construction Materials.Heating & Air Conditioning.NA,Q3
09/12/2016,FINANCE,EDF Energy Plc,ELECTRICITY," 81,012.65 ",Utilities.Electricity.NA,Q3
21/12/2016,CAPITAL CC,Elliott Group Limited,"MAINTENANCE - EQUIPMENT, FURNITURE AND MATERIALS"," 81,000.00 ","Works - Construction, Repair & Maint.Buildings.Construction",Q3
28/10/2016,ADULT SOCIAL CARE,Queens Oak Care Centre,RESIDENTIAL PLACEMENTS - PRIVATE CONTRACTORS PAYMENT," 80,856.86 ",Social Community Care Supplies & Service.Adult.Nursing Homes,Q3
22/12/2016,CAPITAL CC,Father Nature,GROUNDS MAINTENANCE," 78,400.00 ",Horticultural.Seeds & Plants.NA,Q3
28/11/2016,ADULT SOCIAL CARE,Queens Oak Care Centre,RESIDENTIAL PLACEMENTS - PRIVATE CONTRACTORS PAYMENT," 78,248.57 ",Social Community Care Supplies & Service.Adult.Nursing Homes,Q3
13/12/2016,CAPITAL CC,Mears Ltd,FACILITIES MANAGEMENT," 77,552.86 ","Works - Construction, Repair & Maint.Buildings.Repair & Maintenance",Q3
28/11/2016,CAPITAL CC,Keepmoat Regeneration Ltd,"MAINTENANCE - EQUIPMENT, FURNITURE AND MATERIALS"," 77,375.19 ","Works - Construction, Repair & Maint.Buildings.Construction",Q3
26/12/2016,PUBLIC HEALTH,South London & Maudsley (nhs) Trust,PAYMENT TO HEALTH AUTHORITIES," 76,500.00 ",Healthcare.Public Health.NA,Q3
21/12/2016,CHILDREN'S SERVICES,Morning Lane Associates,CONSULTANCY FEES," 76,300.00 ",Consultancy.Business.NA,Q3
22/12/2016,HOUSING SERVICES (HRA),Riverside Environmental Services Ltd,"MAINTENANCE - EQUIPMENT, FURNITURE AND MATERIALS"," 75,380.00 ",Environmental Services.Testing & Inspection.NA,Q3
14/12/2016,BUSINESS TRANSFORMATION,British Telecommunications plc,LAND LINE TELEPHONE COSTS," 75,346.95 ",Information Communication Technology.Telecommunications.NA,Q3
28/12/2016,BUSINESS TRANSFORMATION,Swiss Post Solutions Ltd,PRINTING," 74,962.49 ",Facilities & Management Services.Printing.NA,Q3
28/11/2016,ADULT SOCIAL CARE,Tracs Ltd,RESIDENTIAL PLACEMENTS - PRIVATE CONTRACTORS PAYMENT," 74,838.28 ",Social Community Care Supplies & Service.Adult.Sheltered Accommodation,Q3
09/11/2016,CAPITAL CC,Tibbalds Planning and Urban Design Ltd,CONSULTANCY FEES," 74,563.55 ","Works - Construction, Repair & Maint.Consultancy.NA",Q3
09/11/2016,CAPITAL CC,Tibbalds Planning and Urban Design Ltd,CONSULTANCY FEES," 74,563.55 ","Works - Construction, Repair & Maint.Consultancy.NA",Q3
05/10/2016,CAPITAL CC,Arcadis LLP,CONSULTANCY FEES," 74,341.72 ","Works - Construction, Repair & Maint.Consultancy.NA",Q3
11/11/2016,CAPITAL CC,Mitie Property Services (UK) Ltd_d,"MAINTENANCE - EQUIPMENT, FURNITURE AND MATERIALS"," 73,975.06 ","Works - Construction, Repair & Maint.Buildings.Construction",Q3
16/11/2016,CAPITAL CC,Tibbalds Planning and Urban Design Ltd,CONSULTANCY FEES," 72,814.55 ","Works - Construction, Repair & Maint.Consultancy.NA",Q3
01/12/2016,CAPITAL CC,Sandwood Design & Build Ltd,"MAINTENANCE - EQUIPMENT, FURNITURE AND MATERIALS"," 72,750.00 ","Works - Construction, Repair & Maint.Buildings.Construction",Q3
27/10/2016,BUSINESS TRANSFORMATION,Canon (UK) Ltd,PHOTOCOPYING," 72,297.25 ",Facilities & Management Services.Reprographics.NA,Q3
12/10/2016,CAPITAL CC,RME Services Ltd,FACILITIES MANAGEMENT," 72,032.13 ","Works - Construction, Repair & Maint.Buildings.Repair & Maintenance",Q3
28/11/2016,CAPITAL CC,Keepmoat Regeneration Ltd,"MAINTENANCE - EQUIPMENT, FURNITURE AND MATERIALS"," 71,599.93 ","Works - Construction, Repair & Maint.Buildings.Construction",Q3
16/11/2016,SENIOR MANAGEMENT - ADULTS & PUBLIC HEALTH,Veolia ES (UK) Ltd,WASTE DISPOSAL COSTS," 71,547.75 ",Environmental Services.Waste Management.NA,Q3
15/12/2016,SENIOR MANAGEMENT - ADULTS & PUBLIC HEALTH,Veolia ES (UK) Ltd,WASTE DISPOSAL COSTS," 71,547.75 ",Environmental Services.Waste Management.NA,Q3
16/11/2016,"NEIGHBOURHOODS, ENVIRONMENT & EMPLOYMENT",Veolia ES (UK) Ltd,REFUSE COLLECTION," 71,547.75 ",Environmental Services.Waste Management.Waste Collection,Q3
15/12/2016,"NEIGHBOURHOODS, ENVIRONMENT & EMPLOYMENT",Veolia ES (UK) Ltd,REFUSE COLLECTION," 71,547.75 ",Environmental Services.Waste Management.Waste Collection,Q3
21/12/2016,"NEIGHBOURHOODS, ENVIRONMENT & EMPLOYMENT",Veolia ES (UK) Ltd,REFUSE COLLECTION," 71,547.75 ",Environmental Services.Waste Management.Waste Collection,Q3
23/12/2016,BUSINESS & CUSTOMER SERVICES,Cofely Workplace Ltd,CLEANING SERVICES," 71,048.97 ",Cleaning & Janitorial.Cleaning Service.Internal,Q3
30/11/2016,BUSINESS & CUSTOMER SERVICES,Cofely Workplace Ltd,CLEANING SERVICES," 70,389.87 ",Cleaning & Janitorial.Cleaning Service.Internal,Q3
15/11/2016,BUSINESS & CUSTOMER SERVICES,Cofely Workplace Ltd,CLEANING SERVICES," 69,631.23 ",Cleaning & Janitorial.Cleaning Service.Internal,Q3
31/10/2016,CAPITAL CC,Arcadis LLP,CONSULTANCY FEES," 68,486.00 ","Works - Construction, Repair & Maint.Consultancy.NA",Q3
21/12/2016,ADULT SOCIAL CARE,Limetree Healthcare Ltd,RESIDENTIAL PLACEMENTS - PRIVATE CONTRACTORS PAYMENT," 67,456.00 ",Social Community Care Supplies & Service.Adult.Nursing Homes,Q3
09/11/2016,CAPITAL CC,Tibbalds Planning and Urban Design Ltd,CONSULTANCY FEES," 67,124.99 ","Works - Construction, Repair & Maint.Consultancy.NA",Q3
28/10/2016,ADULT SOCIAL CARE,Limetree Healthcare Ltd,RESIDENTIAL PLACEMENTS - PRIVATE CONTRACTORS PAYMENT," 66,588.00 ",Social Community Care Supplies & Service.Adult.Nursing Homes,Q3
19/12/2016,CAPITAL CC,Mitie Property Services (UK) Ltd_d,"MAINTENANCE - EQUIPMENT, FURNITURE AND MATERIALS"," 66,482.41 ","Works - Construction, Repair & Maint.Buildings.Construction",Q3
05/10/2016,HOUSING SERVICES (HRA),Mitie Property Services (UK) Ltd_d,RESPONSIVE REPAIRS - MECHANICAL AND ELECTRICAL," 66,015.74 ","Works - Construction, Repair & Maint.Buildings.Construction",Q3
08/11/2016,HOUSING SERVICES (HRA),Mitie Property Services (UK) Ltd_d,RESPONSIVE REPAIRS - MECHANICAL AND ELECTRICAL," 66,015.74 ","Works - Construction, Repair & Maint.Buildings.Construction",Q3
21/12/2016,HOUSING SERVICES (HRA),Mitie Property Services (UK) Ltd_d,RESPONSIVE REPAIRS - MECHANICAL AND ELECTRICAL," 66,015.74 ","Works - Construction, Repair & Maint.Buildings.Construction",Q3
29/12/2016,HOUSING SERVICES (HRA),Mitie Property Services (UK) Ltd_d,RESPONSIVE REPAIRS - MECHANICAL AND ELECTRICAL," 66,015.74 ","Works - Construction, Repair & Maint.Buildings.Construction",Q3
09/12/2016,PUBLIC HEALTH,Naz Project London,PAYMENT TO HEALTH AUTHORITIES," 65,477.84 ",Healthcare.Public Health.NA,Q3
28/11/2016,ADULT SOCIAL CARE,Limetree Healthcare Ltd,RESIDENTIAL PLACEMENTS - PRIVATE CONTRACTORS PAYMENT," 64,440.00 ",Social Community Care Supplies & Service.Adult.Nursing Homes,Q3
27/10/2016,CAPITAL CC,Keepmoat Regeneration Ltd,"MAINTENANCE - EQUIPMENT, FURNITURE AND MATERIALS"," 62,578.76 ","Works - Construction, Repair & Maint.Buildings.Construction",Q3
13/12/2016,CAPITAL CC,Mitie Property Services (UK) Ltd_d,"MAINTENANCE - EQUIPMENT, FURNITURE AND MATERIALS"," 62,559.19 ","Works - Construction, Repair & Maint.Buildings.Construction",Q3
13/10/2016,CAPITAL CC,Pellings LLP,CONSULTANCY FEES," 61,804.89 ","Works - Construction, Repair & Maint.Consultancy.NA",Q3
29/12/2016,CAPITAL CC,Tibbalds Planning and Urban Design Ltd,CONSULTANCY FEES," 61,558.68 ","Works - Construction, Repair & Maint.Consultancy.NA",Q3
21/11/2016,CAPITAL CC,Breyer Group Plc_d,"MAINTENANCE - EQUIPMENT, FURNITURE AND MATERIALS"," 61,463.97 ","Works - Construction, Repair & Maint.Buildings.Construction",Q3
11/11/2016,"NEIGHBOURHOODS, ENVIRONMENT & EMPLOYMENT",Merton & Lambeth Citizens Advice Bureaux Ltd,LEGAL FEES," 61,000.00 ",Legal Services.General Support.NA,Q3
09/11/2016,CAPITAL CC,Tibbalds Planning and Urban Design Ltd,CONSULTANCY FEES," 60,339.63 ","Works - Construction, Repair & Maint.Consultancy.NA",Q3
09/11/2016,CAPITAL CC,Tibbalds Planning and Urban Design Ltd,CONSULTANCY FEES," 60,339.63 ","Works - Construction, Repair & Maint.Consultancy.NA",Q3
14/11/2016,"NEIGHBOURHOODS, ENVIRONMENT & EMPLOYMENT",Jubilee Gardens Trust,OPEN SPACES WORKS," 60,233.55 ","Works - Construction, Repair & Maint.Open Spaces.NA",Q3
14/11/2016,"NEIGHBOURHOODS, ENVIRONMENT & EMPLOYMENT",Jubilee Gardens Trust,OPEN SPACES WORKS," 60,233.55 ","Works - Construction, Repair & Maint.Open Spaces.NA",Q3
29/11/2016,"NEIGHBOURHOODS, ENVIRONMENT & EMPLOYMENT",Citizens Advice Southwark,PRIVATE CONTRACTORS PAYMENT - OTHER," 59,823.00 ",Social Community Care Supplies & Service.Adult.Advice & Counselling Services,Q3
11/11/2016,"NEIGHBOURHOODS, ENVIRONMENT & EMPLOYMENT",F M Conway Ltd_d,"MAINTENANCE - EQUIPMENT, FURNITURE AND MATERIALS"," 59,565.78 ","Works - Construction, Repair & Maint.Roads.Repair & Maintenance",Q3
09/11/2016,CAPITAL CC,Tibbalds Planning and Urban Design Ltd,CONSULTANCY FEES," 59,119.87 ","Works - Construction, Repair & Maint.Consultancy.NA",Q3
26/12/2016,EDUCATION & LEARNING,Lambeth College,GRANTS AND CONTRIBUTIONS," 58,899.60 ",Financial Services.Grants.NA,Q3
14/11/2016,CAPITAL CC,Mulalley & Co Ltd,BUILDING ALTERATIONS AND MATERIALS," 58,893.54 ","Works - Construction, Repair & Maint.Buildings.Construction",Q3
01/11/2016,CAPITAL CC,Morrison Facilities Services Ltd_d,BUILDING ALTERATIONS AND MATERIALS," 58,871.55 ","Works - Construction, Repair & Maint.Buildings.Construction",Q3
08/11/2016,BUSINESS TRANSFORMATION,XMA Ltd,ICT HARDWARE," 58,612.50 ",Information Communication Technology.Hardware.NA,Q3
30/11/2016,BUSINESS & CUSTOMER SERVICES,Cofely Workplace Ltd,FACILITIES MANAGEMENT," 58,135.48 ","Works - Construction, Repair & Maint.Buildings.Repair & Maintenance",Q3
23/12/2016,BUSINESS & CUSTOMER SERVICES,Cofely Workplace Ltd,FACILITIES MANAGEMENT," 57,520.04 ","Works - Construction, Repair & Maint.Buildings.Repair & Maintenance",Q3
02/11/2016,CAPITAL CC,Keepmoat Regeneration Ltd,"MAINTENANCE - EQUIPMENT, FURNITURE AND MATERIALS"," 56,718.94 ","Works - Construction, Repair & Maint.Buildings.Construction",Q3
15/11/2016,BUSINESS & CUSTOMER SERVICES,Cofely Workplace Ltd,FACILITIES MANAGEMENT," 56,508.36 ","Works - Construction, Repair & Maint.Buildings.Repair & Maintenance",Q3
25/11/2016,CORPORATE AFFAIRS,Urban Concepts Communications,CONSULTANCY FEES," 56,500.00 ",Consultancy.Business.NA,Q3
28/10/2016,PUBLIC HEALTH,The Metro Centre Ltd,PAYMENT TO HEALTH AUTHORITIES," 55,943.50 ",Healthcare.Public Health.NA,Q3
28/10/2016,PUBLIC HEALTH,The Metro Centre Ltd,PAYMENT TO HEALTH AUTHORITIES," 55,943.50 ",Healthcare.Public Health.NA,Q3
24/10/2016,CAPITAL CC,T Brown Group Ltd_d,BUILDING ALTERATIONS AND MATERIALS," 55,832.56 ",Building Construction Materials.Heating & Air Conditioning.NA,Q3
07/12/2016,CAPITAL CC,Oco Ltd_d,BUILDING ALTERATIONS AND MATERIALS," 55,055.27 ",Building Construction Materials.Heating & Air Conditioning.NA,Q3
11/11/2016,CAPITAL CC,Mitie Property Services (UK) Ltd_d,"MAINTENANCE - EQUIPMENT, FURNITURE AND MATERIALS"," 54,984.94 ","Works - Construction, Repair & Maint.Buildings.Construction",Q3
28/12/2016,CAPITAL CC,Igloo Regeneration Ltd,"MAINTENANCE - EQUIPMENT, FURNITURE AND MATERIALS"," 54,483.90 ","Works - Construction, Repair & Maint.Roads.Reconstruction & Resurfacing",Q3
09/12/2016,ADULT SOCIAL CARE,TOPAZ Social Work CIC,PRIVATE CONTRACTORS PAYMENT - OTHER," 54,354.25 ",Social Community Care Supplies & Service.Adult.NA,Q3
15/11/2016,BUSINESS TRANSFORMATION,Telefonica (UK) Ltd,LAND LINE TELEPHONE COSTS," 54,268.16 ",Information Communication Technology.Telecommunications.NA,Q3
11/11/2016,CHILDREN'S SERVICES,Merton & Lambeth Citizens Advice Bureaux Ltd,PRIVATE CONTRACTORS PAYMENT - OTHER," 54,000.00 ",Social Community Care Supplies & Service.Adult.NA,Q3
25/11/2016,CAPITAL CC,Kier Construction Ltd,FACILITIES MANAGEMENT," 52,685.28 ","Works - Construction, Repair & Maint.Buildings.Repair & Maintenance",Q3
09/11/2016,CAPITAL CC,Tibbalds Planning and Urban Design Ltd,CONSULTANCY FEES," 52,572.89 ","Works - Construction, Repair & Maint.Consultancy.NA",Q3
15/12/2016,CAPITAL CC,Breyer Group Plc_d,"MAINTENANCE - EQUIPMENT, FURNITURE AND MATERIALS"," 52,477.22 ","Works - Construction, Repair & Maint.Buildings.Construction",Q3
13/12/2016,CAPITAL CC,Breyer Group Plc_d,"MAINTENANCE - EQUIPMENT, FURNITURE AND MATERIALS"," 52,345.12 ","Works - Construction, Repair & Maint.Buildings.Construction",Q3
17/11/2016,CAPITAL CC,Igloo Regeneration Ltd,"MAINTENANCE - EQUIPMENT, FURNITURE AND MATERIALS"," 52,338.33 ","Works - Construction, Repair & Maint.Roads.Reconstruction & Resurfacing",Q3
23/12/2016,CHILDREN'S SERVICES,Kedleston Schools (London) Ltd,RESIDENTIAL PLACEMENTS - PRIVATE CONTRACTORS PAYMENT," 52,142.86 ",Social Community Care Supplies & Service.Children.Residential Care,Q3
31/10/2016,ADULT SOCIAL CARE,Laurels Care Centre Ltd,NURSING HOMES - PRIVATE CONTRACTORS PAYMENT," 51,636.04 ",Social Community Care Supplies & Service.Adult.Nursing Homes,Q3
28/11/2016,ADULT SOCIAL CARE,229 Mitcham Lane Ltd,RESIDENTIAL PLACEMENTS - PRIVATE CONTRACTORS PAYMENT," 51,164.29 ",Social Community Care Supplies & Service.Adult.Residential Care,Q3
26/10/2016,CHILDREN'S SERVICES,Five Rivers Child Care Ltd,RESIDENTIAL PLACEMENTS - PRIVATE CONTRACTORS PAYMENT," 51,071.43 ",Social Community Care Supplies & Service.Children.Residential Care,Q3
21/12/2016,CHILDREN'S SERVICES,Orange Grove Fostercare Ltd,FOSTERING AGENCY PLACEMENTS - PRIVATE CONTRACTORS PAYMENT," 50,825.14 ",Social Community Care Supplies & Service.Children.Fostering,Q3
29/12/2016,"STRATEGIC HOUSING, REGENERATION & COMMUNITIES (HRA)",Morrison Facilities Services Ltd_d,RESPONSIVE REPAIRS - MECHANICAL AND ELECTRICAL," 49,686.94 ","Works - Construction, Repair & Maint.Buildings.Repair & Maintenance",Q3
21/12/2016,"STRATEGIC HOUSING, REGENERATION & COMMUNITIES (HRA)",Morrison Facilities Services Ltd_d,RESPONSIVE REPAIRS - MECHANICAL AND ELECTRICAL," 49,460.77 ","Works - Construction, Repair & Maint.Buildings.Repair & Maintenance",Q3
28/11/2016,CAPITAL CC,Igloo Regeneration Ltd,"MAINTENANCE - EQUIPMENT, FURNITURE AND MATERIALS"," 49,406.17 ","Works - Construction, Repair & Maint.Roads.Reconstruction & Resurfacing",Q3
09/11/2016,CAPITAL CC,Tibbalds Planning and Urban Design Ltd,CONSULTANCY FEES," 49,394.40 ","Works - Construction, Repair & Maint.Consultancy.NA",Q3
09/11/2016,CAPITAL CC,Tibbalds Planning and Urban Design Ltd,CONSULTANCY FEES," 49,394.40 ","Works - Construction, Repair & Maint.Consultancy.NA",Q3
04/11/2016,"STRATEGIC HOUSING, REGENERATION & COMMUNITIES",Saint Mungo Association,STREET POPULATION SERVICES - PRIVATE CONTRACTORS PAYMENT," 48,959.20 ","Social Community Care Supplies & Service.Adult.Temporary Accommodation, Hostels",Q3
02/11/2016,"STRATEGIC HOUSING, REGENERATION & COMMUNITIES",Saint Mungo Association,STREET POPULATION SERVICES - PRIVATE CONTRACTORS PAYMENT," 48,959.20 ","Social Community Care Supplies & Service.Adult.Temporary Accommodation, Hostels",Q3
05/12/2016,"STRATEGIC HOUSING, REGENERATION & COMMUNITIES",Saint Mungo Association,STREET POPULATION SERVICES - PRIVATE CONTRACTORS PAYMENT," 48,959.20 ","Social Community Care Supplies & Service.Adult.Temporary Accommodation, Hostels",Q3
29/12/2016,"STRATEGIC HOUSING, REGENERATION & COMMUNITIES",Saint Mungo Association,STREET POPULATION SERVICES - PRIVATE CONTRACTORS PAYMENT," 48,959.20 ","Social Community Care Supplies & Service.Adult.Temporary Accommodation, Hostels",Q3
08/11/2016,CAPITAL CC,Mears Ltd,FACILITIES MANAGEMENT," 48,811.11 ","Works - Construction, Repair & Maint.Buildings.Repair & Maintenance",Q3
08/11/2016,CAPITAL CC,Mears Ltd,FACILITIES MANAGEMENT," 48,811.11 ","Works - Construction, Repair & Maint.Buildings.Repair & Maintenance",Q3
16/11/2016,CAPITAL CC,Baily Garner LLP,FACILITIES MANAGEMENT," 48,779.79 ","Works - Construction, Repair & Maint.Buildings.Repair & Maintenance",Q3
17/10/2016,"NEIGHBOURHOODS, ENVIRONMENT & EMPLOYMENT",London Councils,CONSULTANCY FEES," 48,748.58 ",Consultancy.Strategic Planning.NA,Q3
13/12/2016,CAPITAL CC,Mears Ltd,FACILITIES MANAGEMENT," 48,680.76 ","Works - Construction, Repair & Maint.Buildings.Repair & Maintenance",Q3
09/11/2016,PUBLIC HEALTH,Clapham Family Practice,PAYMENT TO HEALTH AUTHORITIES," 48,527.91 ",Healthcare.Public Health.NA,Q3
04/11/2016,"STRATEGIC HOUSING, REGENERATION & COMMUNITIES",Refuge,FLOATING SUPPORT SERVICES - PRIVATE CONTRACTORS PAYMENT," 48,330.24 ",Social Community Care Supplies & Service.Adult.Advice & Counselling Services,Q3
02/11/2016,"STRATEGIC HOUSING, REGENERATION & COMMUNITIES",Refuge,FLOATING SUPPORT SERVICES - PRIVATE CONTRACTORS PAYMENT," 48,330.24 ",Social Community Care Supplies & Service.Adult.Advice & Counselling Services,Q3
05/12/2016,"STRATEGIC HOUSING, REGENERATION & COMMUNITIES",Refuge,FLOATING SUPPORT SERVICES - PRIVATE CONTRACTORS PAYMENT," 48,330.24 ",Social Community Care Supplies & Service.Adult.Advice & Counselling Services,Q3
29/12/2016,"STRATEGIC HOUSING, REGENERATION & COMMUNITIES",Refuge,FLOATING SUPPORT SERVICES - PRIVATE CONTRACTORS PAYMENT," 48,330.24 ",Social Community Care Supplies & Service.Adult.Advice & Counselling Services,Q3
28/10/2016,HOUSING SERVICES (HRA),P & R Installations Company Ltd,"MAINTENANCE - EQUIPMENT, FURNITURE AND MATERIALS"," 48,201.35 ","Works - Construction, Repair & Maint.Buildings.Construction",Q3
09/12/2016,FINANCE,EDF Energy Plc,ELECTRICITY," 47,940.01 ",Utilities.Electricity.NA,Q3
21/12/2016,ADULT SOCIAL CARE,Windmill Care Centre,RESIDENTIAL PLACEMENTS - PRIVATE CONTRACTORS PAYMENT," 47,151.00 ",Social Community Care Supplies & Service.Adult.Nursing Homes,Q3
10/11/2016,PUBLIC HEALTH,Chelsea & Westminster Hospital NHS Foundation Trust,PAYMENT TO HEALTH AUTHORITIES," 46,959.00 ",Healthcare.Public Health.NA,Q3
02/11/2016,ADULT SOCIAL CARE,Mosaic Clubhouse,PRIVATE CONTRACTORS PAYMENT - OTHER," 46,916.67 ",Social Community Care Supplies & Service.Adult.Mental Health Services,Q3
02/11/2016,ADULT SOCIAL CARE,Mosaic Clubhouse,PRIVATE CONTRACTORS PAYMENT - OTHER," 46,916.67 ",Social Community Care Supplies & Service.Adult.Mental Health Services,Q3
04/11/2016,"STRATEGIC HOUSING, REGENERATION & COMMUNITIES",Thames Reach,PRIVATE CONTRACTORS PAYMENT - OTHER," 46,884.68 ",Social Community Care Supplies & Service.Adult.Mental Health Services,Q3
02/11/2016,"STRATEGIC HOUSING, REGENERATION & COMMUNITIES",Thames Reach,PRIVATE CONTRACTORS PAYMENT - OTHER," 46,884.68 ",Social Community Care Supplies & Service.Adult.Mental Health Services,Q3
05/12/2016,"STRATEGIC HOUSING, REGENERATION & COMMUNITIES",Thames Reach,PRIVATE CONTRACTORS PAYMENT - OTHER," 46,884.68 ",Social Community Care Supplies & Service.Adult.Mental Health Services,Q3
29/12/2016,"STRATEGIC HOUSING, REGENERATION & COMMUNITIES",Thames Reach,PRIVATE CONTRACTORS PAYMENT - OTHER," 46,884.68 ",Social Community Care Supplies & Service.Adult.Mental Health Services,Q3
16/11/2016,CHILDREN'S SERVICES,Hopscotch Care Ltd,RESIDENTIAL PLACEMENTS - PRIVATE CONTRACTORS PAYMENT," 46,500.00 ",Social Community Care Supplies & Service.Children.Residential Care,Q3
28/10/2016,ADULT SOCIAL CARE,Windmill Care Centre,RESIDENTIAL PLACEMENTS - PRIVATE CONTRACTORS PAYMENT," 46,500.00 ",Social Community Care Supplies & Service.Adult.Nursing Homes,Q3
29/11/2016,"NEIGHBOURHOODS, ENVIRONMENT & EMPLOYMENT",Veolia ES (UK) Ltd,WASTE DISPOSAL COSTS," 46,167.09 ",Environmental Services.Waste Management.NA,Q3
29/11/2016,"NEIGHBOURHOODS, ENVIRONMENT & EMPLOYMENT",Veolia ES (UK) Ltd,WASTE DISPOSAL COSTS," 46,167.09 ",Environmental Services.Waste Management.NA,Q3
21/12/2016,"NEIGHBOURHOODS, ENVIRONMENT & EMPLOYMENT",Veolia ES (UK) Ltd,WASTE DISPOSAL COSTS," 46,167.09 ",Environmental Services.Waste Management.NA,Q3
04/11/2016,"STRATEGIC HOUSING, REGENERATION & COMMUNITIES",Single Homeless Project,FLOATING SUPPORT SERVICES - PRIVATE CONTRACTORS PAYMENT," 46,027.40 ",Social Community Care Supplies & Service.Adult.Sheltered Accommodation,Q3
02/11/2016,"STRATEGIC HOUSING, REGENERATION & COMMUNITIES",Single Homeless Project,FLOATING SUPPORT SERVICES - PRIVATE CONTRACTORS PAYMENT," 46,027.40 ",Social Community Care Supplies & Service.Adult.Sheltered Accommodation,Q3
05/12/2016,"STRATEGIC HOUSING, REGENERATION & COMMUNITIES",Single Homeless Project,FLOATING SUPPORT SERVICES - PRIVATE CONTRACTORS PAYMENT," 46,027.40 ",Social Community Care Supplies & Service.Adult.Sheltered Accommodation,Q3
29/12/2016,"STRATEGIC HOUSING, REGENERATION & COMMUNITIES",Single Homeless Project,FLOATING SUPPORT SERVICES - PRIVATE CONTRACTORS PAYMENT," 46,027.40 ",Social Community Care Supplies & Service.Adult.Sheltered Accommodation,Q3
30/11/2016,BUSINESS & CUSTOMER SERVICES,Cofely Workplace Ltd,SECURITY SERVICES (EXCLUDING PREMISES)," 45,994.92 ",Facilities & Management Services.Security.NA,Q3
14/11/2016,CORPORATE AFFAIRS,Legastat Ltd,LEGAL FEES," 45,860.00 ",Legal Services.General Support.NA,Q3
26/10/2016,CAPITAL CC,Mears Ltd,FACILITIES MANAGEMENT," 45,640.88 ","Works - Construction, Repair & Maint.Buildings.Repair & Maintenance",Q3
29/12/2016,CAPITAL CC,Tibbalds Planning and Urban Design Ltd,CONSULTANCY FEES," 45,557.10 ","Works - Construction, Repair & Maint.Consultancy.NA",Q3
09/11/2016,CAPITAL CC,Tibbalds Planning and Urban Design Ltd,CONSULTANCY FEES," 45,404.34 ","Works - Construction, Repair & Maint.Consultancy.NA",Q3
28/10/2016,FINANCE,Lambert Smith Hampton Group Ltd,CONSULTANCY FEES," 45,286.33 ",Consultancy.Technical & Feasibility.NA,Q3
16/11/2016,CHILDREN'S SERVICES,Parkview Care Broadstairs Ltd,RESIDENTIAL PLACEMENTS - PRIVATE CONTRACTORS PAYMENT," 45,244.28 ",Social Community Care Supplies & Service.Children.Childcare Services,Q3
26/12/2016,CAPITAL CC,Mears Ltd,FACILITIES MANAGEMENT," 45,159.13 ","Works - Construction, Repair & Maint.Buildings.Repair & Maintenance",Q3
28/11/2016,ADULT SOCIAL CARE,Windmill Care Centre,RESIDENTIAL PLACEMENTS - PRIVATE CONTRACTORS PAYMENT," 45,000.00 ",Social Community Care Supplies & Service.Adult.Nursing Homes,Q3
07/12/2016,BUSINESS TRANSFORMATION,Virgin Media Business,LAND LINE TELEPHONE COSTS," 44,815.00 ",Information Communication Technology.Telecommunications.NA,Q3
16/11/2016,FINANCE,Grant Thornton,PROFESSIONAL SERVICES - GENERAL," 44,638.46 ",Financial Services.Accountancy.NA,Q3
16/11/2016,CAPITAL CC,Grant Thornton,PROFESSIONAL SERVICES - GENERAL," 44,638.46 ",Financial Services.Accountancy.NA,Q3
05/12/2016,ADULT SOCIAL CARE,Allied Healthcare (UK) Ltd,DOMICILIARY CARE - THIRD PARTY," 44,633.92 ",Social Community Care Supplies & Service.Adult.Domiciliary Care,Q3
19/12/2016,"NEIGHBOURHOODS, ENVIRONMENT & EMPLOYMENT",F M Conway Ltd_d,"MAINTENANCE - EQUIPMENT, FURNITURE AND MATERIALS"," 44,343.34 ","Works - Construction, Repair & Maint.Roads.Repair & Maintenance",Q3
31/10/2016,CHILDREN'S SERVICES,RBGM Consulting Ltd,CONSULTANCY FEES," 44,100.00 ",Consultancy.Business.NA,Q3
12/10/2016,CORPORATE AFFAIRS,Legastat Ltd,LEGAL FEES," 44,090.00 ",Legal Services.General Support.NA,Q3
10/10/2016,ADULT SOCIAL CARE,Allied Healthcare (UK) Ltd,DOMICILIARY CARE - THIRD PARTY," 43,765.32 ",Social Community Care Supplies & Service.Adult.Domiciliary Care,Q3
14/12/2016,BUSINESS TRANSFORMATION,British Telecommunications plc,LAND LINE TELEPHONE COSTS," 43,740.25 ",Information Communication Technology.Telecommunications.NA,Q3
21/10/2016,CAPITAL CC,T Brown Group Ltd_d,BUILDING ALTERATIONS AND MATERIALS," 43,372.27 ",Building Construction Materials.Heating & Air Conditioning.NA,Q3
18/11/2016,BUSINESS TRANSFORMATION,Capgemini UK Plc,ICT SOFTWARE," 43,242.86 ",Information Communication Technology.Software.NA,Q3
05/12/2016,ADULT SOCIAL CARE,One Housing Group,FLOATING SUPPORT SERVICES - PRIVATE CONTRACTORS PAYMENT," 43,147.89 ",Social Community Care Supplies & Service.Adult.Sheltered Accommodation,Q3
15/11/2016,BUSINESS & CUSTOMER SERVICES,Cofely Workplace Ltd,SECURITY SERVICES (EXCLUDING PREMISES)," 42,979.41 ",Facilities & Management Services.Security.NA,Q3
28/10/2016,PUBLIC HEALTH,Blenheim CDP,PRIVATE CONTRACTORS PAYMENT - OTHER," 42,750.00 ",Social Community Care Supplies & Service.Adult.Advice & Counselling Services,Q3
09/11/2016,CAPITAL CC,Tibbalds Planning and Urban Design Ltd,CONSULTANCY FEES," 42,634.23 ","Works - Construction, Repair & Maint.Consultancy.NA",Q3
15/12/2016,ADULT SOCIAL CARE,Aspire Wellbeing,DAYCARE - PRIVATE CONTRACTORS PAYMENT," 42,500.00 ",Social Community Care Supplies & Service.Adult.Day Care,Q3
21/12/2016,CAPITAL CC,T Brown Group Ltd_d,BUILDING ALTERATIONS AND MATERIALS," 42,496.25 ",Building Construction Materials.Heating & Air Conditioning.NA,Q3
12/12/2016,CAPITAL CC,Mitie Property Services (UK) Ltd_d,"MAINTENANCE - EQUIPMENT, FURNITURE AND MATERIALS"," 42,464.61 ","Works - Construction, Repair & Maint.Buildings.Construction",Q3
16/11/2016,CHILDREN'S SERVICES,Hillcrest Children Services Ltd,RESIDENTIAL PLACEMENTS - PRIVATE CONTRACTORS PAYMENT," 41,961.85 ",Social Community Care Supplies & Service.Children.Fostering,Q3
05/10/2016,FINANCE,EDF Energy Plc,ELECTRICITY," 41,618.29 ",Utilities.Electricity.NA,Q3
23/11/2016,CAPITAL CC,T Brown Group Ltd_d,BUILDING ALTERATIONS AND MATERIALS," 41,343.97 ",Building Construction Materials.Heating & Air Conditioning.NA,Q3
18/11/2016,"STRATEGIC HOUSING, REGENERATION & COMMUNITIES",St Giles Trust,PRIVATE CONTRACTORS PAYMENT - OTHER," 41,250.00 ",Social Community Care Supplies & Service.Children.Youth Offending Services,Q3
28/11/2016,"STRATEGIC HOUSING, REGENERATION & COMMUNITIES",St Giles Trust,PRIVATE CONTRACTORS PAYMENT - OTHER," 41,250.00 ",Social Community Care Supplies & Service.Children.Youth Offending Services,Q3
12/12/2016,CAPITAL CC,Mitie Property Services (UK) Ltd_d,"MAINTENANCE - EQUIPMENT, FURNITURE AND MATERIALS"," 41,195.29 ","Works - Construction, Repair & Maint.Buildings.Construction",Q3
24/10/2016,"STRATEGIC HOUSING, REGENERATION & COMMUNITIES",OCS Group UK Ltd t/a Cannon,"PURCHASE - EQUIPMENT, FURNITURE AND MATERIALS"," 41,062.00 ",Street & Traffic Management.Closed-Circuit Television.NA,Q3
17/11/2016,"STRATEGIC HOUSING, REGENERATION & COMMUNITIES",OCS Group UK Ltd t/a Cannon,"PURCHASE - EQUIPMENT, FURNITURE AND MATERIALS"," 41,062.00 ",Street & Traffic Management.Closed-Circuit Television.NA,Q3
26/12/2016,"STRATEGIC HOUSING, REGENERATION & COMMUNITIES",OCS Group UK Ltd t/a Cannon,"PURCHASE - EQUIPMENT, FURNITURE AND MATERIALS"," 41,062.00 ",Street & Traffic Management.Closed-Circuit Television.NA,Q3
27/10/2016,"NEIGHBOURHOODS, ENVIRONMENT & EMPLOYMENT",PAYE Stonework & Restoration Ltd,"MAINTENANCE - EQUIPMENT, FURNITURE AND MATERIALS"," 40,940.35 ","Works - Construction, Repair & Maint.Architect.NA",Q3
16/12/2016,CAPITAL CC,Doe Sport Ltd,OPEN SPACES WORKS," 40,783.13 ","Works - Construction, Repair & Maint.Open Spaces.Repair & Maintenance",Q3
12/12/2016,CAPITAL CC,Baily Garner LLP,FACILITIES MANAGEMENT," 40,753.00 ","Works - Construction, Repair & Maint.Buildings.Repair & Maintenance",Q3
08/11/2016,ADULT SOCIAL CARE,Allied Healthcare (UK) Ltd,DOMICILIARY CARE - THIRD PARTY," 40,650.48 ",Social Community Care Supplies & Service.Adult.Domiciliary Care,Q3
26/10/2016,CAPITAL CC,Breyer Group Plc_d,"MAINTENANCE - EQUIPMENT, FURNITURE AND MATERIALS"," 40,502.56 ","Works - Construction, Repair & Maint.Buildings.Construction",Q3
27/12/2016,EDUCATION & LEARNING,Liverpool City Council,IN HOUSE FOSTER CARE PLACEMENTS - PRIVATE CONTRACTORS PAYMENT," 40,280.00 ",Social Community Care Supplies & Service.Children.Fostering,Q3
02/11/2016,PUBLIC HEALTH,Foundation66,PAYMENT TO HEALTH AUTHORITIES," 40,000.00 ",Healthcare.Public Health.NA,Q3
08/12/2016,CHILDREN'S SERVICES,Help for Carers,PRIVATE CONTRACTORS PAYMENT - OTHER," 40,000.00 ",Social Community Care Supplies & Service.Children.NA,Q3
22/12/2016,HOUSING SERVICES (HRA),Morrison Facilities Services Ltd_d,CLEANING SERVICES," 39,919.43 ",Cleaning & Janitorial.Cleaning Service.External,Q3
08/12/2016,"NEIGHBOURHOODS, ENVIRONMENT & EMPLOYMENT",F M Conway Ltd_d,"MAINTENANCE - EQUIPMENT, FURNITURE AND MATERIALS"," 39,494.30 ","Works - Construction, Repair & Maint.Roads.Repair & Maintenance",Q3
27/10/2016,"NEIGHBOURHOODS, ENVIRONMENT & EMPLOYMENT",Greenwich Leisure Ltd,ARTS AND LEISURE COSTS," 39,446.67 ",Arts & Leisure Services.Outsourced Service.NA,Q3
02/12/2016,"NEIGHBOURHOODS, ENVIRONMENT & EMPLOYMENT",Greenwich Leisure Ltd,ARTS AND LEISURE COSTS," 39,446.67 ",Arts & Leisure Services.Outsourced Service.NA,Q3
23/12/2016,BUSINESS & CUSTOMER SERVICES,Cofely Workplace Ltd,SECURITY SERVICES (EXCLUDING PREMISES)," 39,381.36 ",Facilities & Management Services.Security.NA,Q3
02/11/2016,ADULT SOCIAL CARE,Mosaic Clubhouse,PRIVATE CONTRACTORS PAYMENT - OTHER," 39,291.67 ",Social Community Care Supplies & Service.Adult.Mental Health Services,Q3
02/11/2016,ADULT SOCIAL CARE,Mosaic Clubhouse,PRIVATE CONTRACTORS PAYMENT - OTHER," 39,291.67 ",Social Community Care Supplies & Service.Adult.Mental Health Services,Q3
02/11/2016,ADULT SOCIAL CARE,Mosaic Clubhouse,PRIVATE CONTRACTORS PAYMENT - OTHER," 39,291.67 ",Social Community Care Supplies & Service.Adult.Mental Health Services,Q3
02/11/2016,ADULT SOCIAL CARE,Mosaic Clubhouse,PRIVATE CONTRACTORS PAYMENT - OTHER," 39,291.67 ",Social Community Care Supplies & Service.Adult.Mental Health Services,Q3
10/11/2016,ADULT SOCIAL CARE,Mosaic Clubhouse,PRIVATE CONTRACTORS PAYMENT - OTHER," 39,291.67 ",Social Community Care Supplies & Service.Adult.Mental Health Services,Q3
31/10/2016,CAPITAL CC,Arcadis LLP,CONSULTANCY FEES," 39,157.45 ","Works - Construction, Repair & Maint.Consultancy.NA",Q3
20/10/2016,HOUSING SERVICES (HRA),Morrison Facilities Services Ltd_d,CLEANING SERVICES," 39,059.40 ",Cleaning & Janitorial.Cleaning Service.External,Q3
17/10/2016,CAPITAL CC,Mitie Property Services (UK) Ltd_d,"MAINTENANCE - EQUIPMENT, FURNITURE AND MATERIALS"," 38,986.87 ","Works - Construction, Repair & Maint.Buildings.Construction",Q3
23/11/2016,HOUSING SERVICES (HRA),Morrison Facilities Services Ltd_d,CLEANING SERVICES," 38,985.09 ",Cleaning & Janitorial.Cleaning Service.External,Q3
21/11/2016,PUBLIC HEALTH,Terence Higgins Enterprises,PAYMENT TO HEALTH AUTHORITIES," 38,309.50 ",Healthcare.Public Health.NA,Q3
08/11/2016,PUBLIC HEALTH,Brook Young People,PAYMENT TO HEALTH AUTHORITIES," 38,304.50 ",Healthcare.Public Health.NA,Q3
10/10/2016,CHILDREN'S SERVICES,The Adolescent and Children's Trust (TACT),FOSTERING AGENCY PLACEMENTS - PRIVATE CONTRACTORS PAYMENT," 38,292.88 ",Social Community Care Supplies & Service.Children.Fostering,Q3
04/10/2016,HOUSING SERVICES (HRA),Oco Ltd_d,RESPONSIVE REPAIRS - MECHANICAL AND ELECTRICAL," 38,280.06 ",Building Construction Materials.Heating & Air Conditioning.NA,Q3
08/11/2016,HOUSING SERVICES (HRA),Oco Ltd_d,RESPONSIVE REPAIRS - MECHANICAL AND ELECTRICAL," 38,280.06 ",Building Construction Materials.Heating & Air Conditioning.NA,Q3
23/12/2016,HOUSING SERVICES (HRA),Oco Ltd_d,RESPONSIVE REPAIRS - MECHANICAL AND ELECTRICAL," 38,280.06 ",Building Construction Materials.Heating & Air Conditioning.NA,Q3
29/12/2016,HOUSING SERVICES (HRA),Oco Ltd_d,RESPONSIVE REPAIRS - MECHANICAL AND ELECTRICAL," 38,280.06 ",Building Construction Materials.Heating & Air Conditioning.NA,Q3
28/12/2016,CAPITAL CC,F M Conway Ltd_d,OPEN SPACES WORKS," 38,219.08 ","Works - Construction, Repair & Maint.Open Spaces.NA",Q3
13/12/2016,CAPITAL CC,Precision Lift Services Ltd_d,CYCLICAL/PLANNED MAINTENANCE - MECHANICAL AND ELECTRICAL," 37,996.42 ",Facilities & Management Services.Lifts.NA,Q3
04/11/2016,"STRATEGIC HOUSING, REGENERATION & COMMUNITIES",Centrepoint Soho Ltd,PRIVATE CONTRACTORS PAYMENT - OTHER," 37,972.60 ",Social Community Care Supplies & Service.Adult.Sheltered Accommodation,Q3
02/11/2016,"STRATEGIC HOUSING, REGENERATION & COMMUNITIES",Centrepoint Soho Ltd,PRIVATE CONTRACTORS PAYMENT - OTHER," 37,972.60 ",Social Community Care Supplies & Service.Adult.Sheltered Accommodation,Q3
05/12/2016,"STRATEGIC HOUSING, REGENERATION & COMMUNITIES",Centrepoint Soho Ltd,PRIVATE CONTRACTORS PAYMENT - OTHER," 37,972.60 ",Social Community Care Supplies & Service.Adult.Sheltered Accommodation,Q3
29/12/2016,"STRATEGIC HOUSING, REGENERATION & COMMUNITIES",Centrepoint Soho Ltd,PRIVATE CONTRACTORS PAYMENT - OTHER," 37,972.60 ",Social Community Care Supplies & Service.Adult.Sheltered Accommodation,Q3
12/12/2016,FINANCE,Deloitte LLP,AUDIT FEES," 37,927.00 ",Financial Services.Audit.NA,Q3
15/12/2016,PUBLIC HEALTH,St George's Healthcare NHS Trust,PAYMENT TO HEALTH AUTHORITIES," 37,735.04 ",Healthcare.Public Health.NA,Q3
18/10/2016,ADULT SOCIAL CARE,Regard Partnership,RESIDENTIAL PLACEMENTS - PRIVATE CONTRACTORS PAYMENT," 37,721.46 ",Social Community Care Supplies & Service.Adult.Residential Care,Q3
13/12/2016,CHILDREN'S SERVICES,Saint Michael's Fellowship,PRIVATE CONTRACTORS PAYMENT - OTHER," 37,500.00 ",Social Community Care Supplies & Service.Adult.Residential Care,Q3
29/12/2016,HOUSING SERVICES (HRA),Mears Ltd,BUILDING ALTERATIONS AND MATERIALS," 37,491.00 ","Works - Construction, Repair & Maint.Buildings.Repair & Maintenance",Q3
22/11/2016,BUSINESS & CUSTOMER SERVICES,Clapham Business Improvement District,GENERAL OFFICE EXPENSES," 37,458.04 ",Consultancy.Business.NA,Q3
23/11/2016,PUBLIC HEALTH,The Metro Centre Ltd,PAYMENT TO HEALTH AUTHORITIES," 37,375.00 ",Healthcare.Public Health.NA,Q3
17/11/2016,PUBLIC HEALTH,St George's Healthcare NHS Trust,PAYMENT TO HEALTH AUTHORITIES," 37,356.66 ",Healthcare.Public Health.NA,Q3
31/10/2016,BUSINESS TRANSFORMATION,Swiss Post Solutions Ltd,PRINTING," 37,262.00 ",Facilities & Management Services.Printing.NA,Q3
28/11/2016,BUSINESS TRANSFORMATION,Swiss Post Solutions Ltd,PRINTING," 37,262.00 ",Facilities & Management Services.Printing.NA,Q3
28/12/2016,BUSINESS TRANSFORMATION,Swiss Post Solutions Ltd,PRINTING," 37,262.00 ",Facilities & Management Services.Printing.NA,Q3
28/11/2016,"NEIGHBOURHOODS, ENVIRONMENT & EMPLOYMENT",F M Conway Ltd_d,"MAINTENANCE - EQUIPMENT, FURNITURE AND MATERIALS"," 37,253.38 ","Works - Construction, Repair & Maint.Roads.Repair & Maintenance",Q3
18/11/2016,CAPITAL CC,Igloo Regeneration Ltd,"MAINTENANCE - EQUIPMENT, FURNITURE AND MATERIALS"," 37,171.00 ","Works - Construction, Repair & Maint.Roads.Reconstruction & Resurfacing",Q3
09/11/2016,CAPITAL CC,Tibbalds Planning and Urban Design Ltd,CONSULTANCY FEES," 36,687.70 ","Works - Construction, Repair & Maint.Consultancy.NA",Q3
09/11/2016,CAPITAL CC,Tibbalds Planning and Urban Design Ltd,CONSULTANCY FEES," 36,687.70 ","Works - Construction, Repair & Maint.Consultancy.NA",Q3
01/11/2016,"STRATEGIC HOUSING, REGENERATION & COMMUNITIES (HRA)",Morrison Facilities Services Ltd_d,RESPONSIVE REPAIRS - MECHANICAL AND ELECTRICAL," 36,227.73 ","Works - Construction, Repair & Maint.Buildings.Repair & Maintenance",Q3
18/11/2016,BUSINESS TRANSFORMATION,Capgemini UK Plc,ICT SOFTWARE," 36,175.17 ",Information Communication Technology.Software.NA,Q3
18/11/2016,BUSINESS TRANSFORMATION,Capgemini UK Plc,ICT SOFTWARE," 36,175.17 ",Information Communication Technology.Software.NA,Q3
02/11/2016,ADULT SOCIAL CARE,Lambeth Mencap_d,FLOATING SUPPORT SERVICES - PRIVATE CONTRACTORS PAYMENT," 35,526.99 ",Social Community Care Supplies & Service.Disabled Children.Care Services,Q3
02/11/2016,HOUSING SERVICES (HRA),G L Hockfield & Co Solicitors,LEGAL FEES," 35,176.00 ",Legal Services.Advocacy.NA,Q3
04/11/2016,ADULT SOCIAL CARE,Look Ahead Housing & Care Ltd,PRIVATE CONTRACTORS PAYMENT - OTHER," 35,155.08 ",Social Community Care Supplies & Service.Adult.Mental Health Services,Q3
02/11/2016,ADULT SOCIAL CARE,Look Ahead Housing & Care Ltd,PRIVATE CONTRACTORS PAYMENT - OTHER," 35,155.08 ",Social Community Care Supplies & Service.Adult.Mental Health Services,Q3
05/12/2016,ADULT SOCIAL CARE,Look Ahead Housing & Care Ltd,PRIVATE CONTRACTORS PAYMENT - OTHER," 35,155.08 ",Social Community Care Supplies & Service.Adult.Mental Health Services,Q3
29/12/2016,ADULT SOCIAL CARE,Look Ahead Housing & Care Ltd,PRIVATE CONTRACTORS PAYMENT - OTHER," 35,155.08 ",Social Community Care Supplies & Service.Adult.Mental Health Services,Q3
22/11/2016,"PLANNING, TRANSPORT & DEVELOPMENT",Swiss Post Solutions Ltd,PRINTING," 35,042.68 ",Facilities & Management Services.Printing.NA,Q3
22/12/2016,PUBLIC HEALTH,St George's Healthcare NHS Trust,PAYMENT TO HEALTH AUTHORITIES," 35,034.54 ",Healthcare.Public Health.NA,Q3
10/11/2016,EDUCATION & LEARNING,Civica UK Ltd,ICT MAINTENANCE AND SUPPORT," 34,975.67 ",Information Communication Technology.Services.Maintenance & Support,Q3
05/12/2016,EDUCATION & LEARNING,Civica UK Ltd,ICT MAINTENANCE AND SUPPORT," 34,975.67 ",Information Communication Technology.Services.Maintenance & Support,Q3
06/10/2016,BUSINESS & CUSTOMER SERVICES,Chartwell Properties Ltd,RENTS PAYABLE," 34,740.00 ",Financial Services.Rents.NA,Q3
23/12/2016,BUSINESS & CUSTOMER SERVICES,Chartwell Properties Ltd,RENTS PAYABLE," 34,740.00 ",Financial Services.Rents.NA,Q3
16/11/2016,BUSINESS & CUSTOMER SERVICES,Interserve Consulting_d,CONSULTANCY FEES," 34,610.88 ","Works - Construction, Repair & Maint.Consultancy.NA",Q3
04/11/2016,ADULT SOCIAL CARE,Southside Partnership,PRIVATE CONTRACTORS PAYMENT - OTHER," 34,541.96 ",Social Community Care Supplies & Service.Adult.Residential Care,Q3
02/11/2016,ADULT SOCIAL CARE,Southside Partnership,PRIVATE CONTRACTORS PAYMENT - OTHER," 34,541.96 ",Social Community Care Supplies & Service.Adult.Residential Care,Q3
05/12/2016,ADULT SOCIAL CARE,Southside Partnership,PRIVATE CONTRACTORS PAYMENT - OTHER," 34,541.96 ",Social Community Care Supplies & Service.Adult.Residential Care,Q3
29/12/2016,ADULT SOCIAL CARE,Southside Partnership,PRIVATE CONTRACTORS PAYMENT - OTHER," 34,541.96 ",Social Community Care Supplies & Service.Adult.Residential Care,Q3
12/12/2016,CAPITAL CC,Mitie Property Services (UK) Ltd_d,"MAINTENANCE - EQUIPMENT, FURNITURE AND MATERIALS"," 34,206.47 ","Works - Construction, Repair & Maint.Buildings.Construction",Q3
19/12/2016,CAPITAL CC,Lambeth Lighting Services,"PURCHASE - EQUIPMENT, FURNITURE AND MATERIALS"," 34,198.94 ",Highway Equipment & Materials.Street Lighting.NA,Q3
16/11/2016,CHILDREN'S SERVICES,Prospects for Young People Ltd,RESIDENTIAL PLACEMENTS - PRIVATE CONTRACTORS PAYMENT," 34,071.43 ",Social Community Care Supplies & Service.Children.Residential Care,Q3
26/12/2016,"NEIGHBOURHOODS, ENVIRONMENT & EMPLOYMENT",Western Riverside Waste Authority,WASTE DISPOSAL COSTS," 33,876.05 ",Environmental Services.Waste Management.NA,Q3
31/10/2016,ADULT SOCIAL CARE,Bishops Gate nd Priory,NURSING HOMES - PRIVATE CONTRACTORS PAYMENT," 33,628.57 ",Social Community Care Supplies & Service.Adult.Residential Care,Q3
20/12/2016,BUSINESS & CUSTOMER SERVICES,Vauxhall One,GENERAL OFFICE EXPENSES," 33,542.92 ",Consultancy.Technical & Feasibility.NA,Q3
04/11/2016,ADULT SOCIAL CARE,Family Mosaic,PRIVATE CONTRACTORS PAYMENT - OTHER," 33,479.96 ",Social Community Care Supplies & Service.Adult.Mental Health Services,Q3
02/11/2016,ADULT SOCIAL CARE,Family Mosaic,PRIVATE CONTRACTORS PAYMENT - OTHER," 33,479.96 ",Social Community Care Supplies & Service.Adult.Mental Health Services,Q3
05/12/2016,ADULT SOCIAL CARE,Family Mosaic,PRIVATE CONTRACTORS PAYMENT - OTHER," 33,479.96 ",Social Community Care Supplies & Service.Adult.Mental Health Services,Q3
29/12/2016,ADULT SOCIAL CARE,Family Mosaic,PRIVATE CONTRACTORS PAYMENT - OTHER," 33,479.96 ",Social Community Care Supplies & Service.Adult.Mental Health Services,Q3
04/11/2016,"STRATEGIC HOUSING, REGENERATION & COMMUNITIES",Thames Reach,PRIVATE CONTRACTORS PAYMENT - OTHER," 33,227.32 ",Social Community Care Supplies & Service.Adult.Mental Health Services,Q3
02/11/2016,"STRATEGIC HOUSING, REGENERATION & COMMUNITIES",Thames Reach,PRIVATE CONTRACTORS PAYMENT - OTHER," 33,227.32 ",Social Community Care Supplies & Service.Adult.Mental Health Services,Q3
05/12/2016,"STRATEGIC HOUSING, REGENERATION & COMMUNITIES",Thames Reach,PRIVATE CONTRACTORS PAYMENT - OTHER," 33,227.32 ",Social Community Care Supplies & Service.Adult.Mental Health Services,Q3
29/12/2016,"STRATEGIC HOUSING, REGENERATION & COMMUNITIES",Thames Reach,PRIVATE CONTRACTORS PAYMENT - OTHER," 33,227.32 ",Social Community Care Supplies & Service.Adult.Mental Health Services,Q3
23/11/2016,CAPITAL CC,Mace Ltd,PROFESSIONAL SERVICES - GENERAL," 33,000.00 ",Consultancy.Property.NA,Q3
07/12/2016,PUBLIC HEALTH,Naz Project London,PAYMENT TO HEALTH AUTHORITIES," 32,738.92 ",Healthcare.Public Health.NA,Q3
14/12/2016,ADULT SOCIAL CARE,Allied Healthcare (UK) Ltd,DOMICILIARY CARE - THIRD PARTY," 32,673.06 ",Social Community Care Supplies & Service.Adult.Domiciliary Care,Q3
30/11/2016,BUSINESS & CUSTOMER SERVICES,Cofely Workplace Ltd,FACILITIES MANAGEMENT," 32,662.19 ","Works - Construction, Repair & Maint.Buildings.Repair & Maintenance",Q3
14/11/2016,ADULT SOCIAL CARE,Allied Healthcare (UK) Ltd,DOMICILIARY CARE - THIRD PARTY," 32,421.19 ",Social Community Care Supplies & Service.Adult.Domiciliary Care,Q3
15/11/2016,BUSINESS & CUSTOMER SERVICES,Cofely Workplace Ltd,FACILITIES MANAGEMENT," 32,415.91 ","Works - Construction, Repair & Maint.Buildings.Repair & Maintenance",Q3
15/11/2016,BUSINESS & CUSTOMER SERVICES,Cofely Workplace Ltd,FACILITIES MANAGEMENT," 32,415.91 ","Works - Construction, Repair & Maint.Buildings.Repair & Maintenance",Q3
11/10/2016,ADULT SOCIAL CARE,Allied Healthcare (UK) Ltd,DOMICILIARY CARE - THIRD PARTY," 32,378.74 ",Social Community Care Supplies & Service.Adult.Domiciliary Care,Q3
16/12/2016,CHILDREN'S SERVICES,Inner Circle Recruitment,STAFF RECRUITMENT COSTS," 32,130.00 ",Human Resources.Recruitment & Assessment.NA,Q3
23/12/2016,BUSINESS & CUSTOMER SERVICES,Cofely Workplace Ltd,FACILITIES MANAGEMENT," 31,990.17 ","Works - Construction, Repair & Maint.Buildings.Repair & Maintenance",Q3
27/12/2016,"NEIGHBOURHOODS, ENVIRONMENT & EMPLOYMENT",Liberty Printers Ltd,PRINTING," 31,792.11 ",Facilities & Management Services.Printing.NA,Q3
26/10/2016,CHILDREN'S SERVICES,Pilgrims Corner Ltd,RESIDENTIAL PLACEMENTS - PRIVATE CONTRACTORS PAYMENT," 31,757.14 ",Social Community Care Supplies & Service.Children.Residential Care,Q3
14/11/2016,ADULT SOCIAL CARE,Allied Healthcare (UK) Ltd,DOMICILIARY CARE - THIRD PARTY," 31,750.88 ",Social Community Care Supplies & Service.Adult.Domiciliary Care,Q3
20/10/2016,CHILDREN'S SERVICES,High Trees Community Development Trust,PRIVATE CONTRACTORS PAYMENT - OTHER," 31,667.00 ",Social Community Care Supplies & Service.Children.Childcare Services,Q3
14/11/2016,CHILDREN'S SERVICES,Contact a Family,ARTS AND LEISURE COSTS," 31,608.50 ",Social Community Care Supplies & Service.Children.Advice & Counselling,Q3
14/12/2016,ADULT SOCIAL CARE,Allied Healthcare (UK) Ltd,DOMICILIARY CARE - THIRD PARTY," 31,559.45 ",Social Community Care Supplies & Service.Adult.Domiciliary Care,Q3
20/10/2016,BUSINESS & CUSTOMER SERVICES,South London & Maudsley (nhs) Trust,CLEANING SERVICES," 31,477.25 ",Cleaning & Janitorial.Cleaning Service.Internal,Q3
13/10/2016,"NEIGHBOURHOODS, ENVIRONMENT & EMPLOYMENT",London Councils,CONSULTANCY FEES," 31,288.00 ",Consultancy.Strategic Planning.NA,Q3
04/11/2016,ADULT SOCIAL CARE,Riverside ECHG,PRIVATE CONTRACTORS PAYMENT - OTHER," 31,114.24 ",Social Community Care Supplies & Service.Adult.Sheltered Accommodation,Q3
29/12/2016,ADULT SOCIAL CARE,Riverside ECHG,PRIVATE CONTRACTORS PAYMENT - OTHER," 31,114.24 ",Social Community Care Supplies & Service.Adult.Sheltered Accommodation,Q3
08/11/2016,CAPITAL CC,Oco Ltd_d,BUILDING ALTERATIONS AND MATERIALS," 31,051.42 ",Building Construction Materials.Heating & Air Conditioning.NA,Q3
12/10/2016,"NEIGHBOURHOODS, ENVIRONMENT & EMPLOYMENT",Liberty Printers Ltd,PRINTING," 30,956.80 ",Facilities & Management Services.Printing.NA,Q3
19/12/2016,"STRATEGIC HOUSING, REGENERATION & COMMUNITIES (HRA)",Regenter Myatts Field North Ltd,"MAINTENANCE - EQUIPMENT, FURNITURE AND MATERIALS"," 30,868.24 ","Works - Construction, Repair & Maint.Buildings.Construction",Q3
23/12/2016,"STRATEGIC HOUSING, REGENERATION & COMMUNITIES (HRA)",Regenter Myatts Field North Ltd,"MAINTENANCE - EQUIPMENT, FURNITURE AND MATERIALS"," 30,868.24 ","Works - Construction, Repair & Maint.Buildings.Construction",Q3
11/10/2016,ADULT SOCIAL CARE,Allied Healthcare (UK) Ltd,DOMICILIARY CARE - THIRD PARTY," 30,854.78 ",Social Community Care Supplies & Service.Adult.Domiciliary Care,Q3
21/12/2016,HOUSING SERVICES (HRA),Mears Ltd,RESPONSIVE REPAIRS - MECHANICAL AND ELECTRICAL," 30,645.28 ","Works - Construction, Repair & Maint.Buildings.Repair & Maintenance",Q3
01/11/2016,BUSINESS TRANSFORMATION,Virgin Media Business,LAND LINE TELEPHONE COSTS," 30,625.00 ",Information Communication Technology.Telecommunications.NA,Q3
21/11/2016,"NEIGHBOURHOODS, ENVIRONMENT & EMPLOYMENT",City Suburban Tree Surgeons Ltd,OPEN SPACES WORKS," 30,496.52 ","Works - Construction, Repair & Maint.Open Spaces.Repair & Maintenance",Q3
09/11/2016,PUBLIC HEALTH,Quality Medical Solutions,PAYMENT TO HEALTH AUTHORITIES," 30,379.25 ",Healthcare.Public Health.NA,Q3
04/11/2016,"STRATEGIC HOUSING, REGENERATION & COMMUNITIES",Look Ahead Housing & Care Ltd,PRIVATE CONTRACTORS PAYMENT - OTHER," 30,376.76 ",Social Community Care Supplies & Service.Adult.Mental Health Services,Q3
02/11/2016,"STRATEGIC HOUSING, REGENERATION & COMMUNITIES",Look Ahead Housing & Care Ltd,PRIVATE CONTRACTORS PAYMENT - OTHER," 30,376.76 ",Social Community Care Supplies & Service.Adult.Mental Health Services,Q3
05/12/2016,"STRATEGIC HOUSING, REGENERATION & COMMUNITIES",Look Ahead Housing & Care Ltd,PRIVATE CONTRACTORS PAYMENT - OTHER," 30,376.76 ",Social Community Care Supplies & Service.Adult.Mental Health Services,Q3
29/12/2016,"STRATEGIC HOUSING, REGENERATION & COMMUNITIES",Look Ahead Housing & Care Ltd,PRIVATE CONTRACTORS PAYMENT - OTHER," 30,376.76 ",Social Community Care Supplies & Service.Adult.Mental Health Services,Q3
26/12/2016,PUBLIC HEALTH,Equinox Care Ltd,PAYMENT TO HEALTH AUTHORITIES," 30,302.50 ",Healthcare.Public Health.NA,Q3
09/11/2016,CAPITAL CC,Faithful & Gould,CONSULTANCY FEES," 30,000.00 ",Consultancy.Procurement.NA,Q3
15/11/2016,INVESTMENT & GROWTH,Meanwhile Space CIC,CONSULTANCY FEES," 30,000.00 ",Consultancy.Business.NA,Q3
20/12/2016,HOUSING SERVICES (HRA),PricewaterhouseCoopers LLP,AUDIT FEES," 30,000.00 ",Financial Services.Audit.NA,Q3
09/11/2016,CAPITAL CC,Adams & Sutherland,CONSULTANCY FEES," 29,986.80 ",Consultancy.Business.NA,Q3
14/10/2016,CHILDREN'S SERVICES,Young London Today,RENTS PAYABLE," 29,945.72 ",Social Community Care Supplies & Service.Adult.Residential Homes for Older People,Q3
17/10/2016,"NEIGHBOURHOODS, ENVIRONMENT & EMPLOYMENT",City Suburban Tree Surgeons Ltd,OPEN SPACES WORKS," 29,824.43 ","Works - Construction, Repair & Maint.Open Spaces.Repair & Maintenance",Q3
24/10/2016,BUSINESS TRANSFORMATION,Virgin Media Business,LAND LINE TELEPHONE COSTS," 29,616.00 ",Information Communication Technology.Telecommunications.NA,Q3
24/10/2016,"NEIGHBOURHOODS, ENVIRONMENT & EMPLOYMENT",Western Riverside Waste Authority,WASTE DISPOSAL COSTS," 29,502.16 ",Environmental Services.Waste Management.NA,Q3
08/11/2016,CAPITAL CC,Gala Tent Ltd,"MAINTENANCE - EQUIPMENT, FURNITURE AND MATERIALS"," 29,500.30 ","Works - Construction, Repair & Maint.Buildings.Construction",Q3
11/10/2016,HOUSING SERVICES (HRA),Mears Ltd,RESPONSIVE REPAIRS - BUILDING," 29,400.00 ","Works - Construction, Repair & Maint.Buildings.Repair & Maintenance",Q3
19/10/2016,CAPITAL CC,QA Consulting,CONSULTANCY FEES," 29,400.00 ",Information Communication Technology.Services.Consultancy,Q3
28/11/2016,FINANCE,Lambert Smith Hampton Group Ltd,CONSULTANCY FEES," 29,366.76 ",Consultancy.Technical & Feasibility.NA,Q3
21/11/2016,"NEIGHBOURHOODS, ENVIRONMENT & EMPLOYMENT",City Suburban Tree Surgeons Ltd,OPEN SPACES WORKS," 29,308.33 ","Works - Construction, Repair & Maint.Open Spaces.Repair & Maintenance",Q3
07/11/2016,FINANCE,PricewaterhouseCoopers LLP,AUDIT FEES," 29,167.00 ",Financial Services.Audit.NA,Q3
01/12/2016,FINANCE,PricewaterhouseCoopers LLP,AUDIT FEES," 29,167.00 ",Financial Services.Audit.NA,Q3
22/12/2016,CAPITAL CC,T Brown Group Ltd_d,BUILDING ALTERATIONS AND MATERIALS," 28,967.20 ",Building Construction Materials.Heating & Air Conditioning.NA,Q3
24/10/2016,BUSINESS TRANSFORMATION,Virgin Media Business,LAND LINE TELEPHONE COSTS," 28,823.55 ",Information Communication Technology.Telecommunications.NA,Q3
01/12/2016,BUSINESS & CUSTOMER SERVICES,Faithful & Gould,CONSULTANCY FEES," 28,650.00 ",Consultancy.Procurement.NA,Q3
16/12/2016,HOUSING SERVICES (HRA),Martin Arnold Ltd,CONSULTANCY FEES," 28,540.00 ",Consultancy.Technical & Feasibility.NA,Q3
27/12/2016,"NEIGHBOURHOODS, ENVIRONMENT & EMPLOYMENT",Liberty Printers Ltd,PRINTING," 28,503.42 ",Facilities & Management Services.Printing.NA,Q3
06/12/2016,CAPITAL CC,Pinsent Masons LLP,BUILDING ALTERATIONS AND MATERIALS," 28,355.56 ",Legal Services.General Support.NA,Q3
24/10/2016,BUSINESS TRANSFORMATION,Virgin Media Business,LAND LINE TELEPHONE COSTS," 28,350.00 ",Information Communication Technology.Telecommunications.NA,Q3
11/11/2016,"NEIGHBOURHOODS, ENVIRONMENT & EMPLOYMENT",F M Conway Ltd_d,"MAINTENANCE - EQUIPMENT, FURNITURE AND MATERIALS"," 28,342.39 ","Works - Construction, Repair & Maint.Roads.Repair & Maintenance",Q3
21/12/2016,ADULT SOCIAL CARE,BUPA Care Homes,NURSING HOMES - PRIVATE CONTRACTORS PAYMENT," 28,285.71 ",Social Community Care Supplies & Service.Adult.Nursing Homes,Q3
19/12/2016,CAPITAL CC,Mitie Property Services (UK) Ltd_d,"MAINTENANCE - EQUIPMENT, FURNITURE AND MATERIALS"," 28,103.40 ","Works - Construction, Repair & Maint.Buildings.Construction",Q3
12/12/2016,CAPITAL CC,Architecture 00,CONSULTANCY FEES," 27,973.00 ",Consultancy.Management.Efficiency,Q3
28/11/2016,CAPITAL CC,Keepmoat Regeneration Ltd,"MAINTENANCE - EQUIPMENT, FURNITURE AND MATERIALS"," 27,889.00 ","Works - Construction, Repair & Maint.Buildings.Construction",Q3
09/11/2016,HOUSING SERVICES (HRA),KNK Building Services Ltd,FACILITIES MANAGEMENT," 27,848.00 ","Works - Construction, Repair & Maint.Buildings.Repair & Maintenance",Q3
19/12/2016,CAPITAL CC,Mears Ltd,FACILITIES MANAGEMENT," 27,531.43 ","Works - Construction, Repair & Maint.Buildings.Repair & Maintenance",Q3
29/11/2016,HOUSING SERVICES (HRA),H. Batra & Co. Solicitors Ltd,LEGAL FEES," 27,520.00 ",Legal Services.Legal Opinion.NA,Q3
27/12/2016,"STRATEGIC HOUSING, REGENERATION & COMMUNITIES",St Giles Trust,PRIVATE CONTRACTORS PAYMENT - OTHER," 27,500.00 ",Social Community Care Supplies & Service.Children.Youth Offending Services,Q3
28/12/2016,CAPITAL CC,Civica UK Ltd,ICT MAINTENANCE AND SUPPORT," 27,445.17 ",Information Communication Technology.Services.Maintenance & Support,Q3
04/11/2016,"STRATEGIC HOUSING, REGENERATION & COMMUNITIES","Change, Grow, Live (CGL)",STREET POPULATION SERVICES - PRIVATE CONTRACTORS PAYMENT," 27,435.08 ",Healthcare.Public Health.NA,Q3
02/11/2016,"STRATEGIC HOUSING, REGENERATION & COMMUNITIES","Change, Grow, Live (CGL)",STREET POPULATION SERVICES - PRIVATE CONTRACTORS PAYMENT," 27,435.08 ",Healthcare.Public Health.NA,Q3
05/12/2016,"STRATEGIC HOUSING, REGENERATION & COMMUNITIES","Change, Grow, Live (CGL)",STREET POPULATION SERVICES - PRIVATE CONTRACTORS PAYMENT," 27,435.08 ",Healthcare.Public Health.NA,Q3
29/12/2016,"STRATEGIC HOUSING, REGENERATION & COMMUNITIES","Change, Grow, Live (CGL)",STREET POPULATION SERVICES - PRIVATE CONTRACTORS PAYMENT," 27,435.08 ",Healthcare.Public Health.NA,Q3
18/10/2016,BUSINESS & CUSTOMER SERVICES,South Bank Bid Ltd,GENERAL OFFICE EXPENSES," 27,258.56 ",Consultancy.Business.NA,Q3
09/11/2016,HOUSING SERVICES (HRA),Libra Construction Services Ltd,FACILITIES MANAGEMENT," 27,249.00 ","Works - Construction, Repair & Maint.Buildings.Repair & Maintenance",Q3
31/10/2016,"NEIGHBOURHOODS, ENVIRONMENT & EMPLOYMENT",Centre 70 Advice Centre,LEGAL FEES," 27,207.25 ",Legal Services.General Support.NA,Q3
24/10/2016,BUSINESS TRANSFORMATION,Virgin Media Business,LAND LINE TELEPHONE COSTS," 27,148.00 ",Information Communication Technology.Telecommunications.NA,Q3
04/11/2016,"STRATEGIC HOUSING, REGENERATION & COMMUNITIES",Saint Mungo Association,PRIVATE CONTRACTORS PAYMENT - OTHER," 27,139.96 ","Social Community Care Supplies & Service.Adult.Temporary Accommodation, Hostels",Q3
02/11/2016,"STRATEGIC HOUSING, REGENERATION & COMMUNITIES",Saint Mungo Association,PRIVATE CONTRACTORS PAYMENT - OTHER," 27,139.96 ","Social Community Care Supplies & Service.Adult.Temporary Accommodation, Hostels",Q3
05/12/2016,"STRATEGIC HOUSING, REGENERATION & COMMUNITIES",Saint Mungo Association,PRIVATE CONTRACTORS PAYMENT - OTHER," 27,139.96 ","Social Community Care Supplies & Service.Adult.Temporary Accommodation, Hostels",Q3
29/12/2016,"STRATEGIC HOUSING, REGENERATION & COMMUNITIES",Saint Mungo Association,PRIVATE CONTRACTORS PAYMENT - OTHER," 27,139.96 ","Social Community Care Supplies & Service.Adult.Temporary Accommodation, Hostels",Q3
15/11/2016,BUSINESS TRANSFORMATION,Telefonica (UK) Ltd,LAND LINE TELEPHONE COSTS," 27,134.08 ",Information Communication Technology.Telecommunications.NA,Q3
29/11/2016,BUSINESS TRANSFORMATION,Telefonica (UK) Ltd,LAND LINE TELEPHONE COSTS," 27,134.08 ",Information Communication Technology.Telecommunications.NA,Q3
30/12/2016,BUSINESS TRANSFORMATION,Telefonica (UK) Ltd,LAND LINE TELEPHONE COSTS," 27,134.08 ",Information Communication Technology.Telecommunications.NA,Q3
10/11/2016,CAPITAL CC,Corelogic Ltd,ICT SOFTWARE," 27,121.00 ",Information Communication Technology.Software.Customised & Bespoke,Q3
26/10/2016,CHILDREN'S SERVICES,Destiny House Ltd,RESIDENTIAL PLACEMENTS - PRIVATE CONTRACTORS PAYMENT," 26,965.57 ",Social Community Care Supplies & Service.Children.Residential Care,Q3
23/12/2016,CHILDREN'S SERVICES,Destiny House Ltd,RESIDENTIAL PLACEMENTS - PRIVATE CONTRACTORS PAYMENT," 26,965.57 ",Social Community Care Supplies & Service.Children.Residential Care,Q3
23/12/2016,CHILDREN'S SERVICES,Royal Borough of Kensington & Chelsea,CONSULTANCY FEES," 26,940.00 ",Consultancy.Business.NA,Q3
09/11/2016,CAPITAL CC,Tibbalds Planning and Urban Design Ltd,CONSULTANCY FEES," 26,928.64 ","Works - Construction, Repair & Maint.Consultancy.NA",Q3
10/11/2016,ADULT SOCIAL CARE,Caretech Community Services Ltd,RESIDENTIAL PLACEMENTS - PRIVATE CONTRACTORS PAYMENT," 26,875.84 ",Social Community Care Supplies & Service.Adult.Residential Care,Q3
04/11/2016,ADULT SOCIAL CARE,Southside Partnership,PRIVATE CONTRACTORS PAYMENT - OTHER," 26,807.68 ",Social Community Care Supplies & Service.Adult.Residential Care,Q3
24/10/2016,"NEIGHBOURHOODS, ENVIRONMENT & EMPLOYMENT",Veolia ES (UK) Ltd,WASTE DISPOSAL COSTS," 26,658.14 ",Environmental Services.Waste Management.NA,Q3
29/11/2016,"NEIGHBOURHOODS, ENVIRONMENT & EMPLOYMENT",Veolia ES (UK) Ltd,WASTE DISPOSAL COSTS," 26,658.14 ",Environmental Services.Waste Management.NA,Q3
21/12/2016,"NEIGHBOURHOODS, ENVIRONMENT & EMPLOYMENT",Veolia ES (UK) Ltd,WASTE DISPOSAL COSTS," 26,658.14 ",Environmental Services.Waste Management.NA,Q3
24/10/2016,"NEIGHBOURHOODS, ENVIRONMENT & EMPLOYMENT",Veolia ES (UK) Ltd,REFUSE COLLECTION," 26,462.00 ",Environmental Services.Waste Management.Waste Collection,Q3
29/11/2016,"NEIGHBOURHOODS, ENVIRONMENT & EMPLOYMENT",Veolia ES (UK) Ltd,REFUSE COLLECTION," 26,462.00 ",Environmental Services.Waste Management.Waste Collection,Q3
21/12/2016,"NEIGHBOURHOODS, ENVIRONMENT & EMPLOYMENT",Veolia ES (UK) Ltd,REFUSE COLLECTION," 26,462.00 ",Environmental Services.Waste Management.Waste Collection,Q3
19/12/2016,PUBLIC HEALTH,Cranstoun Drug Services,PAYMENT TO HEALTH AUTHORITIES," 26,250.00 ",Healthcare.Public Health.NA,Q3
01/11/2016,CAPITAL CC,Morrison Facilities Services Ltd_d,BUILDING ALTERATIONS AND MATERIALS," 26,220.66 ","Works - Construction, Repair & Maint.Buildings.Construction",Q3
24/10/2016,"NEIGHBOURHOODS, ENVIRONMENT & EMPLOYMENT",Veolia ES (UK) Ltd,WASTE DISPOSAL COSTS," 26,199.55 ",Environmental Services.Waste Management.NA,Q3
29/11/2016,"NEIGHBOURHOODS, ENVIRONMENT & EMPLOYMENT",Veolia ES (UK) Ltd,WASTE DISPOSAL COSTS," 26,199.55 ",Environmental Services.Waste Management.NA,Q3
21/12/2016,"NEIGHBOURHOODS, ENVIRONMENT & EMPLOYMENT",Veolia ES (UK) Ltd,WASTE DISPOSAL COSTS," 26,199.55 ",Environmental Services.Waste Management.NA,Q3
09/11/2016,CAPITAL CC,Muse Developments Ltd,"MAINTENANCE - EQUIPMENT, FURNITURE AND MATERIALS"," 26,171.00 ","Works - Construction, Repair & Maint.Architect.NA",Q3
25/11/2016,CHILDREN'S SERVICES,Destiny House Ltd,RESIDENTIAL PLACEMENTS - PRIVATE CONTRACTORS PAYMENT," 26,095.71 ",Social Community Care Supplies & Service.Children.Residential Care,Q3
21/12/2016,ADULT SOCIAL CARE,Precious Homes Ltd,RESIDENTIAL PLACEMENTS - PRIVATE CONTRACTORS PAYMENT," 26,036.42 ",Social Community Care Supplies & Service.Adult.Nursing Homes,Q3
28/10/2016,ADULT SOCIAL CARE,Precious Homes Ltd,RESIDENTIAL PLACEMENTS - PRIVATE CONTRACTORS PAYMENT," 26,036.41 ",Social Community Care Supplies & Service.Adult.Nursing Homes,Q3
04/11/2016,HOUSING SERVICES (HRA),Mears Ltd,FACILITIES MANAGEMENT," 25,853.62 ","Works - Construction, Repair & Maint.Buildings.Repair & Maintenance",Q3
20/12/2016,BUSINESS & CUSTOMER SERVICES,Interserve Consulting_d,CONSULTANCY FEES," 25,710.94 ","Works - Construction, Repair & Maint.Consultancy.NA",Q3
15/12/2016,"NEIGHBOURHOODS, ENVIRONMENT & EMPLOYMENT",Regeneris Consulting Ltd,CONSULTANCY FEES," 25,628.00 ",Consultancy.Technical & Feasibility.NA,Q3
17/11/2016,BUSINESS & CUSTOMER SERVICES,Heywood Ltd,ICT SOFTWARE," 25,595.00 ",Information Communication Technology.Software.Customised & Bespoke,Q3
10/11/2016,PUBLIC HEALTH,Chelsea & Westminster Hospital NHS Foundation Trust,PAYMENT TO HEALTH AUTHORITIES," 25,281.22 ",Healthcare.Public Health.NA,Q3
19/12/2016,"STRATEGIC HOUSING, REGENERATION & COMMUNITIES (HRA)",Regenter Myatts Field North Ltd,"MAINTENANCE - EQUIPMENT, FURNITURE AND MATERIALS"," 25,277.15 ","Works - Construction, Repair & Maint.Buildings.Construction",Q3
23/12/2016,"STRATEGIC HOUSING, REGENERATION & COMMUNITIES (HRA)",Regenter Myatts Field North Ltd,"MAINTENANCE - EQUIPMENT, FURNITURE AND MATERIALS"," 25,277.15 ","Works - Construction, Repair & Maint.Buildings.Construction",Q3
21/10/2016,HOUSING SERVICES (HRA),Precision Lift Services Ltd_d,RESPONSIVE REPAIRS - MECHANICAL AND ELECTRICAL," 25,208.23 ",Facilities & Management Services.Lifts.NA,Q3
10/11/2016,HOUSING SERVICES (HRA),Precision Lift Services Ltd_d,RESPONSIVE REPAIRS - MECHANICAL AND ELECTRICAL," 25,208.23 ",Facilities & Management Services.Lifts.NA,Q3
30/12/2016,HOUSING SERVICES (HRA),Precision Lift Services Ltd_d,RESPONSIVE REPAIRS - MECHANICAL AND ELECTRICAL," 25,208.23 ",Facilities & Management Services.Lifts.NA,Q3
29/12/2016,HOUSING SERVICES (HRA),Precision Lift Services Ltd_d,RESPONSIVE REPAIRS - MECHANICAL AND ELECTRICAL," 25,208.23 ",Facilities & Management Services.Lifts.NA,Q3
28/11/2016,ADULT SOCIAL CARE,Precious Homes Ltd,RESIDENTIAL PLACEMENTS - PRIVATE CONTRACTORS PAYMENT," 25,196.53 ",Social Community Care Supplies & Service.Adult.Nursing Homes,Q3
05/12/2016,HOUSING SERVICES (HRA),Mears Ltd,FACILITIES MANAGEMENT," 25,155.84 ","Works - Construction, Repair & Maint.Buildings.Repair & Maintenance",Q3
22/12/2016,HOUSING SERVICES (HRA),Mears Ltd,FACILITIES MANAGEMENT," 25,155.84 ","Works - Construction, Repair & Maint.Buildings.Repair & Maintenance",Q3
14/11/2016,"NEIGHBOURHOODS, ENVIRONMENT & EMPLOYMENT",London Councils,CONSULTANCY FEES," 25,088.00 ",Consultancy.Strategic Planning.NA,Q3
12/10/2016,"NEIGHBOURHOODS, ENVIRONMENT & EMPLOYMENT",Furnace Managed Services Ltd,BEREAVEMENT SERVICES EQUIPMENT," 25,080.00 ",Cemetery & Crematorium.Equipment.NA,Q3
26/12/2016,"NEIGHBOURHOODS, ENVIRONMENT & EMPLOYMENT",Furnace Managed Services Ltd,BEREAVEMENT SERVICES EQUIPMENT," 25,080.00 ",Cemetery & Crematorium.Equipment.NA,Q3
26/12/2016,"NEIGHBOURHOODS, ENVIRONMENT & EMPLOYMENT",Furnace Managed Services Ltd,BEREAVEMENT SERVICES EQUIPMENT," 25,080.00 ",Cemetery & Crematorium.Equipment.NA,Q3
20/12/2016,"NEIGHBOURHOODS, ENVIRONMENT & EMPLOYMENT",Advising London,LEGAL FEES," 25,000.00 ",Legal Services.General Support.NA,Q3
25/10/2016,HOUSING SERVICES (HRA),Anthony Gold Solicitors,LEGAL FEES," 25,000.00 ",Legal Services.Advocacy.NA,Q3
20/12/2016,POLICY & COMMUNICATIONS,Cedarsave Communications Ltd,CONSULTANCY FEES," 25,000.00 ",Consultancy.Business.NA,Q3
03/11/2016,"NEIGHBOURHOODS, ENVIRONMENT & EMPLOYMENT",City of London,BED & BREAKFAST - PRIVATE CONTRACTORS PAYMENT," 25,000.00 ","Social Community Care Supplies & Service.Adult.Temporary Accommodation, Short Stay",Q3
25/10/2016,CHILDREN'S SERVICES,Creighton & Partners Solicitors,LEGAL FEES," 25,000.00 ",Social Community Care Supplies & Service.Children.Advice & Counselling,Q3
08/12/2016,CHILDREN'S SERVICES,Oval House Theatre,PRIVATE CONTRACTORS PAYMENT - OTHER," 25,000.00 ",Social Community Care Supplies & Service.Children.NA,Q3
11/10/2016,"NEIGHBOURHOODS, ENVIRONMENT & EMPLOYMENT",Brixton Advice Centre,PRIVATE CONTRACTORS PAYMENT - OTHER," 24,807.25 ",Social Community Care Supplies & Service.Adult.Advice & Counselling Services,Q3
23/11/2016,PUBLIC HEALTH,The Metro Centre Ltd,PAYMENT TO HEALTH AUTHORITIES," 24,750.00 ",Healthcare.Public Health.NA,Q3
10/11/2016,CAPITAL CC,F M Conway Ltd_d,"MAINTENANCE - EQUIPMENT, FURNITURE AND MATERIALS"," 24,590.84 ","Works - Construction, Repair & Maint.Roads.Repair & Maintenance",Q3
26/10/2016,CAPITAL CC,Pinsent Masons LLP,BUILDING ALTERATIONS AND MATERIALS," 24,542.75 ",Legal Services.General Support.NA,Q3
30/11/2016,ADULT SOCIAL CARE,Sanctuary Care Ltd,DOMICILIARY CARE - THIRD PARTY," 24,536.69 ",Social Community Care Supplies & Service.Adult.Residential Care,Q3
20/12/2016,POLICY & COMMUNICATIONS,Cedarsave Communications Ltd,CONSULTANCY FEES," 24,500.00 ",Consultancy.Business.NA,Q3
28/12/2016,"NEIGHBOURHOODS, ENVIRONMENT & EMPLOYMENT",Lambeth Law Centre,PRIVATE CONTRACTORS PAYMENT - OTHER," 24,328.50 ",Social Community Care Supplies & Service.Adult.Advice & Counselling Services,Q3
25/10/2016,CHILDREN'S SERVICES,Family Mosaic,RENTS PAYABLE," 24,301.17 ",Social Community Care Supplies & Service.Adult.Mental Health Services,Q3
29/11/2016,"NEIGHBOURHOODS, ENVIRONMENT & EMPLOYMENT",Veolia Es Southwark Ltd,REFUSE COLLECTION," 24,239.57 ",Environmental Services.Waste Management.Waste Collection for Recycling,Q3
15/11/2016,CAPITAL CC,Doe Sport Ltd,OPEN SPACES WORKS," 24,216.87 ","Works - Construction, Repair & Maint.Open Spaces.Repair & Maintenance",Q3
22/11/2016,BUSINESS & CUSTOMER SERVICES,inStreatham Ltd,GENERAL OFFICE EXPENSES," 24,192.55 ",Consultancy.Business.NA,Q3
11/11/2016,"NEIGHBOURHOODS, ENVIRONMENT & EMPLOYMENT",Merton & Lambeth Citizens Advice Bureaux Ltd,LEGAL FEES," 24,173.50 ",Legal Services.General Support.NA,Q3
25/11/2016,ADULT SOCIAL CARE,Sanctuary Care Ltd,DOMICILIARY CARE - THIRD PARTY," 24,147.52 ",Social Community Care Supplies & Service.Adult.Residential Care,Q3
23/12/2016,CHILDREN'S SERVICES,Morning Lane Associates,CONSULTANCY FEES," 24,000.00 ",Consultancy.Business.NA,Q3
21/11/2016,BUSINESS TRANSFORMATION,Telefonica (UK) Ltd,ICT HARDWARE," 23,996.69 ",Information Communication Technology.Hardware.NA,Q3
21/12/2016,ADULT SOCIAL CARE,229 Mitcham Lane Ltd,RESIDENTIAL PLACEMENTS - PRIVATE CONTRACTORS PAYMENT," 23,985.71 ",Social Community Care Supplies & Service.Adult.Residential Care,Q3
25/11/2016,ADULT SOCIAL CARE,Sanctuary Care Ltd,DOMICILIARY CARE - THIRD PARTY," 23,953.61 ",Social Community Care Supplies & Service.Adult.Residential Care,Q3
22/11/2016,"NEIGHBOURHOODS, ENVIRONMENT & EMPLOYMENT",Western Riverside Waste Authority,WASTE DISPOSAL COSTS," 23,895.62 ",Environmental Services.Waste Management.NA,Q3
21/12/2016,ADULT SOCIAL CARE,Goldknight Trading Ltd,SUPPORTED OTHER ACCOMMODATION - PRIVATE CONTRACTORS PAYMENT," 23,886.43 ",Social Community Care Supplies & Service.Adult.Mental Health Services,Q3
27/12/2016,"STRATEGIC HOUSING, REGENERATION & COMMUNITIES",Altair Consultancy and Advisory Services,CONSULTANCY FEES," 23,814.60 ",Consultancy.Business.NA,Q3
01/11/2016,FINANCE,Clive Sheldon,LEGAL FEES," 23,780.00 ",Legal Services.Legal Opinion.NA,Q3
15/11/2016,CAPITAL CC,Panter Hudspith Architects,CONSULTANCY FEES," 23,750.00 ",Consultancy.Technical & Feasibility.NA,Q3
17/11/2016,PUBLIC HEALTH,Chelsea & Westminster Hospital NHS Foundation Trust,PAYMENT TO HEALTH AUTHORITIES," 23,747.54 ",Healthcare.Public Health.NA,Q3
05/12/2016,"STRATEGIC HOUSING, REGENERATION & COMMUNITIES",Ekaya Housing Association Ltd,PRIVATE CONTRACTORS PAYMENT - OTHER," 23,738.40 ","Social Community Care Supplies & Service.Adult.Temporary Accommodation, Long Stay",Q3
29/12/2016,"STRATEGIC HOUSING, REGENERATION & COMMUNITIES",Ekaya Housing Association Ltd,PRIVATE CONTRACTORS PAYMENT - OTHER," 23,738.40 ","Social Community Care Supplies & Service.Adult.Temporary Accommodation, Long Stay",Q3
29/11/2016,"NEIGHBOURHOODS, ENVIRONMENT & EMPLOYMENT",Veolia Es Southwark Ltd,REFUSE COLLECTION," 23,702.01 ",Environmental Services.Waste Management.Waste Collection for Recycling,Q3
16/12/2016,"NEIGHBOURHOODS, ENVIRONMENT & EMPLOYMENT",PAYE Stonework & Restoration Ltd,"MAINTENANCE - EQUIPMENT, FURNITURE AND MATERIALS"," 23,656.18 ","Works - Construction, Repair & Maint.Architect.NA",Q3
21/12/2016,ADULT SOCIAL CARE,Laurels Care Centre Ltd,NURSING HOMES - PRIVATE CONTRACTORS PAYMENT," 23,571.43 ",Social Community Care Supplies & Service.Adult.Nursing Homes,Q3
25/10/2016,CHILDREN'S SERVICES,Family Mosaic,RENTS PAYABLE," 23,517.25 ",Social Community Care Supplies & Service.Adult.Mental Health Services,Q3
04/11/2016,CAPITAL CC,Veolia ES (UK) Ltd,REFUSE COLLECTION," 23,377.18 ",Environmental Services.Waste Management.Waste Collection,Q3
10/11/2016,"NEIGHBOURHOODS, ENVIRONMENT & EMPLOYMENT",St Mungo's,PRIVATE CONTRACTORS PAYMENT - OTHER," 23,310.00 ","Social Community Care Supplies & Service.Adult.Temporary Accommodation, Hostels",Q3
16/11/2016,CHILDREN'S SERVICES,Holmdene Housing Ltd,RESIDENTIAL PLACEMENTS - PRIVATE CONTRACTORS PAYMENT," 23,214.86 ",Social Community Care Supplies & Service.Children.NA,Q3
30/12/2016,HOUSING SERVICES (HRA),Anthony Gold Solicitors,LEGAL FEES," 23,000.00 ",Legal Services.Advocacy.NA,Q3
22/12/2016,"NEIGHBOURHOODS, ENVIRONMENT & EMPLOYMENT",Buro Happold Ltd,CONSULTANCY FEES," 22,920.82 ",Consultancy.Technical & Feasibility.NA,Q3
01/11/2016,CAPITAL CC,Pellings LLP,CONSULTANCY FEES," 22,914.00 ","Works - Construction, Repair & Maint.Consultancy.NA",Q3
21/10/2016,HOUSING SERVICES (HRA),Apex Lift & Escalator Engineers Ltd_d,RESPONSIVE REPAIRS - MECHANICAL AND ELECTRICAL," 22,910.86 ",Facilities & Management Services.Lifts.NA,Q3
21/12/2016,HOUSING SERVICES (HRA),Apex Lift & Escalator Engineers Ltd_d,RESPONSIVE REPAIRS - MECHANICAL AND ELECTRICAL," 22,910.86 ",Facilities & Management Services.Lifts.NA,Q3
21/12/2016,HOUSING SERVICES (HRA),Apex Lift & Escalator Engineers Ltd_d,RESPONSIVE REPAIRS - MECHANICAL AND ELECTRICAL," 22,910.86 ",Facilities & Management Services.Lifts.NA,Q3
09/11/2016,ADULT SOCIAL CARE,Dunheved Lodge,RESIDENTIAL PLACEMENTS - PRIVATE CONTRACTORS PAYMENT," 22,820.00 ",Social Community Care Supplies & Service.Adult.Residential Care,Q3
21/12/2016,CAPITAL CC,Mears Ltd,BUILDING ALTERATIONS AND MATERIALS," 22,781.00 ","Works - Construction, Repair & Maint.Buildings.Repair & Maintenance",Q3
14/10/2016,PUBLIC HEALTH,Imperial College Healthcare NHS Trust,PAYMENT TO HEALTH AUTHORITIES," 22,674.00 ",Healthcare.Public Health.NA,Q3
28/10/2016,"NEIGHBOURHOODS, ENVIRONMENT & EMPLOYMENT",F M Conway Ltd_d,"MAINTENANCE - EQUIPMENT, FURNITURE AND MATERIALS"," 22,650.94 ","Works - Construction, Repair & Maint.Roads.Repair & Maintenance",Q3
22/11/2016,HOUSING SERVICES (HRA),Alphatrack Systems Ltd_d,RESPONSIVE REPAIRS - MECHANICAL AND ELECTRICAL," 22,632.52 ","Works - Construction, Repair & Maint.Buildings.Repair & Maintenance",Q3
29/12/2016,HOUSING SERVICES (HRA),Alphatrack Systems Ltd_d,RESPONSIVE REPAIRS - MECHANICAL AND ELECTRICAL," 22,632.52 ","Works - Construction, Repair & Maint.Buildings.Repair & Maintenance",Q3
29/12/2016,HOUSING SERVICES (HRA),Alphatrack Systems Ltd_d,RESPONSIVE REPAIRS - MECHANICAL AND ELECTRICAL," 22,632.52 ","Works - Construction, Repair & Maint.Buildings.Repair & Maintenance",Q3
04/11/2016,"STRATEGIC HOUSING, REGENERATION & COMMUNITIES",Evolve Housing & Support,PRIVATE CONTRACTORS PAYMENT - OTHER," 22,625.16 ",Facilities & Management Services.Room Hire.NA,Q3
02/11/2016,"STRATEGIC HOUSING, REGENERATION & COMMUNITIES",Evolve Housing & Support,PRIVATE CONTRACTORS PAYMENT - OTHER," 22,625.16 ",Facilities & Management Services.Room Hire.NA,Q3
05/12/2016,"STRATEGIC HOUSING, REGENERATION & COMMUNITIES",Evolve Housing & Support,PRIVATE CONTRACTORS PAYMENT - OTHER," 22,625.16 ",Facilities & Management Services.Room Hire.NA,Q3
29/12/2016,"STRATEGIC HOUSING, REGENERATION & COMMUNITIES",Evolve Housing & Support,PRIVATE CONTRACTORS PAYMENT - OTHER," 22,625.16 ",Facilities & Management Services.Room Hire.NA,Q3
21/12/2016,CHILDREN'S SERVICES,Fostering Support Group,FOSTERING AGENCY PLACEMENTS - PRIVATE CONTRACTORS PAYMENT," 22,419.57 ",Social Community Care Supplies & Service.Children.NA,Q3
23/12/2016,CHILDREN'S SERVICES,National Autistic Society,RESIDENTIAL PLACEMENTS - PRIVATE CONTRACTORS PAYMENT," 22,387.63 ",Social Community Care Supplies & Service.Adult.Day Care,Q3
26/10/2016,CHILDREN'S SERVICES,National Autistic Society,RESIDENTIAL PLACEMENTS - PRIVATE CONTRACTORS PAYMENT," 22,387.62 ",Social Community Care Supplies & Service.Adult.Day Care,Q3
20/12/2016,"NEIGHBOURHOODS, ENVIRONMENT & EMPLOYMENT",London Architectural Metal Fabrication Ltd,"MAINTENANCE - EQUIPMENT, FURNITURE AND MATERIALS"," 22,385.00 ","Works - Construction, Repair & Maint.Buildings.NA",Q3
15/12/2016,"NEIGHBOURHOODS, ENVIRONMENT & EMPLOYMENT",City Suburban Tree Surgeons Ltd,OPEN SPACES WORKS," 22,274.52 ","Works - Construction, Repair & Maint.Open Spaces.Repair & Maintenance",Q3
11/10/2016,MAJOR CAPITAL PROGRAMMES,Focus Education (Lambeth) Ltd,PROFESSIONAL SERVICES - GENERAL," 22,255.20 ",Education.School Services.NA,Q3
21/11/2016,MAJOR CAPITAL PROGRAMMES,Focus Education (Lambeth) Ltd,PROFESSIONAL SERVICES - GENERAL," 22,255.20 ",Education.School Services.NA,Q3
07/11/2016,CHILDREN'S SERVICES,Education Development Trust,PRIVATE CONTRACTORS PAYMENT - OTHER," 22,203.75 ",Social Community Care Supplies & Service.Children.NA,Q3
07/11/2016,CAPITAL CC,Godfreys Ltd,SECURITY SERVICES (EXCLUDING PREMISES)," 22,148.00 ",Facilities & Management Services.Security.Equipment,Q3
21/12/2016,ADULT SOCIAL CARE,BHHI,NURSING HOMES - PRIVATE CONTRACTORS PAYMENT," 21,915.71 ",Social Community Care Supplies & Service.Adult.Nursing Homes,Q3
21/12/2016,ADULT SOCIAL CARE,Cognithan Ltd,RESIDENTIAL PLACEMENTS - PRIVATE CONTRACTORS PAYMENT," 21,850.00 ",Social Community Care Supplies & Service.Adult.Nursing Homes,Q3
21/12/2016,ADULT SOCIAL CARE,Precious Homes Ltd,RESIDENTIAL PLACEMENTS - PRIVATE CONTRACTORS PAYMENT," 21,830.65 ",Social Community Care Supplies & Service.Adult.Nursing Homes,Q3
28/10/2016,ADULT SOCIAL CARE,Precious Homes Ltd,RESIDENTIAL PLACEMENTS - PRIVATE CONTRACTORS PAYMENT," 21,830.64 ",Social Community Care Supplies & Service.Adult.Nursing Homes,Q3
24/11/2016,"STRATEGIC HOUSING, REGENERATION & COMMUNITIES",Refuge,PRIVATE CONTRACTORS PAYMENT - OTHER," 21,762.00 ",Social Community Care Supplies & Service.Adult.NA,Q3
21/12/2016,ADULT SOCIAL CARE,Sussex Healthcare - Kingsmead Lodge,RESIDENTIAL PLACEMENTS - PRIVATE CONTRACTORS PAYMENT," 21,750.00 ",Social Community Care Supplies & Service.Respite Care.NA,Q3
21/12/2016,CHILDREN'S SERVICES,Compass Fostering London & Eastern Ltd,FOSTERING AGENCY PLACEMENTS - PRIVATE CONTRACTORS PAYMENT," 21,698.52 ",Social Community Care Supplies & Service.Children.Fostering,Q3
21/12/2016,CHILDREN'S SERVICES,Compass Fostering London & Eastern Ltd,FOSTERING AGENCY PLACEMENTS - PRIVATE CONTRACTORS PAYMENT," 21,698.52 ",Social Community Care Supplies & Service.Children.Fostering,Q3
25/11/2016,CHILDREN'S SERVICES,National Autistic Society,RESIDENTIAL PLACEMENTS - PRIVATE CONTRACTORS PAYMENT," 21,665.44 ",Social Community Care Supplies & Service.Adult.Day Care,Q3
11/10/2016,HOUSING SERVICES (HRA),Mears Ltd,RESPONSIVE REPAIRS - BUILDING," 21,643.75 ","Works - Construction, Repair & Maint.Buildings.Repair & Maintenance",Q3
23/11/2016,PUBLIC HEALTH,Clapham Family Practice,PAYMENT TO HEALTH AUTHORITIES," 21,600.00 ",Healthcare.Public Health.NA,Q3
31/10/2016,ADULT SOCIAL CARE,Claydon House Residential Home,NURSING HOMES - PRIVATE CONTRACTORS PAYMENT," 21,521.42 ",Social Community Care Supplies & Service.Adult.Residential Care,Q3
23/12/2016,CHILDREN'S SERVICES,The Hesley Group Ltd,RESIDENTIAL PLACEMENTS - PRIVATE CONTRACTORS PAYMENT," 21,500.10 ",Social Community Care Supplies & Service.Children.Residential Care,Q3
26/10/2016,CHILDREN'S SERVICES,The Hesley Group Ltd,RESIDENTIAL PLACEMENTS - PRIVATE CONTRACTORS PAYMENT," 21,500.09 ",Social Community Care Supplies & Service.Children.Residential Care,Q3
06/10/2016,HOUSING SERVICES (HRA),KNK Building Services Ltd,FACILITIES MANAGEMENT," 21,500.00 ","Works - Construction, Repair & Maint.Buildings.Repair & Maintenance",Q3
19/12/2016,CAPITAL CC,Mitie Property Services (UK) Ltd_d,"MAINTENANCE - EQUIPMENT, FURNITURE AND MATERIALS"," 21,453.44 ","Works - Construction, Repair & Maint.Buildings.Construction",Q3
19/10/2016,CAPITAL CC,QA Consulting,CONSULTANCY FEES," 21,262.50 ",Information Communication Technology.Services.Consultancy,Q3
28/10/2016,ADULT SOCIAL CARE,Precious Homes Ltd,RESIDENTIAL PLACEMENTS - PRIVATE CONTRACTORS PAYMENT," 21,259.49 ",Social Community Care Supplies & Service.Adult.Nursing Homes,Q3
21/12/2016,ADULT SOCIAL CARE,Precious Homes Ltd,RESIDENTIAL PLACEMENTS - PRIVATE CONTRACTORS PAYMENT," 21,259.49 ",Social Community Care Supplies & Service.Adult.Nursing Homes,Q3
21/12/2016,ADULT SOCIAL CARE,Clifton Manor,RESIDENTIAL PLACEMENTS - PRIVATE CONTRACTORS PAYMENT," 21,212.35 ",Social Community Care Supplies & Service.Adult.Residential Care,Q3
04/11/2016,"STRATEGIC HOUSING, REGENERATION & COMMUNITIES",Saint Mungo Association,PRIVATE CONTRACTORS PAYMENT - OTHER," 21,186.88 ","Social Community Care Supplies & Service.Adult.Temporary Accommodation, Hostels",Q3
02/11/2016,"STRATEGIC HOUSING, REGENERATION & COMMUNITIES",Saint Mungo Association,PRIVATE CONTRACTORS PAYMENT - OTHER," 21,186.88 ","Social Community Care Supplies & Service.Adult.Temporary Accommodation, Hostels",Q3
05/12/2016,"STRATEGIC HOUSING, REGENERATION & COMMUNITIES",Saint Mungo Association,PRIVATE CONTRACTORS PAYMENT - OTHER," 21,186.88 ","Social Community Care Supplies & Service.Adult.Temporary Accommodation, Hostels",Q3
29/12/2016,"STRATEGIC HOUSING, REGENERATION & COMMUNITIES",Saint Mungo Association,PRIVATE CONTRACTORS PAYMENT - OTHER," 21,186.88 ","Social Community Care Supplies & Service.Adult.Temporary Accommodation, Hostels",Q3
28/11/2016,ADULT SOCIAL CARE,Precious Homes Ltd,RESIDENTIAL PLACEMENTS - PRIVATE CONTRACTORS PAYMENT," 21,126.43 ",Social Community Care Supplies & Service.Adult.Nursing Homes,Q3
23/12/2016,PUBLIC HEALTH,Carat,PAYMENT TO HEALTH AUTHORITIES," 21,041.94 ",Healthcare.Public Health.NA,Q3
07/11/2016,ADULT SOCIAL CARE,Allied Healthcare (UK) Ltd,DOMICILIARY CARE - THIRD PARTY," 20,987.80 ",Social Community Care Supplies & Service.Adult.Domiciliary Care,Q3
24/11/2016,CHILDREN'S SERVICES,The Hesley Group Ltd,RESIDENTIAL PLACEMENTS - PRIVATE CONTRACTORS PAYMENT," 20,806.54 ",Social Community Care Supplies & Service.Children.Residential Care,Q3
03/11/2016,CAPITAL CC,T Brown Group Ltd_d,BUILDING ALTERATIONS AND MATERIALS," 20,786.25 ",Building Construction Materials.Heating & Air Conditioning.NA,Q3
23/12/2016,CHILDREN'S SERVICES,Hopscotch Care Ltd,RESIDENTIAL PLACEMENTS - PRIVATE CONTRACTORS PAYMENT," 20,592.85 ",Social Community Care Supplies & Service.Children.Residential Care,Q3
28/11/2016,ADULT SOCIAL CARE,Precious Homes Ltd,RESIDENTIAL PLACEMENTS - PRIVATE CONTRACTORS PAYMENT," 20,573.70 ",Social Community Care Supplies & Service.Adult.Nursing Homes,Q3
21/12/2016,"NEIGHBOURHOODS, ENVIRONMENT & EMPLOYMENT",Veolia Es Southwark Ltd,REFUSE COLLECTION," 20,519.80 ",Environmental Services.Waste Management.Waste Collection for Recycling,Q3
01/12/2016,FINANCE,PricewaterhouseCoopers LLP,AUDIT FEES," 20,500.00 ",Financial Services.Audit.NA,Q3
28/10/2016,"NEIGHBOURHOODS, ENVIRONMENT & EMPLOYMENT",F M Conway Ltd_d,"MAINTENANCE - EQUIPMENT, FURNITURE AND MATERIALS"," 20,383.88 ","Works - Construction, Repair & Maint.Roads.Repair & Maintenance",Q3
28/10/2016,"NEIGHBOURHOODS, ENVIRONMENT & EMPLOYMENT",F M Conway Ltd_d,"MAINTENANCE - EQUIPMENT, FURNITURE AND MATERIALS"," 20,383.88 ","Works - Construction, Repair & Maint.Roads.Repair & Maintenance",Q3
26/10/2016,CHILDREN'S SERVICES,Cambian Childcare Ltd,RESIDENTIAL PLACEMENTS - PRIVATE CONTRACTORS PAYMENT," 20,371.43 ",Social Community Care Supplies & Service.Children.Residential Care,Q3
23/12/2016,CHILDREN'S SERVICES,Cambian Childcare Ltd,RESIDENTIAL PLACEMENTS - PRIVATE CONTRACTORS PAYMENT," 20,371.43 ",Social Community Care Supplies & Service.Children.Residential Care,Q3
23/12/2016,CHILDREN'S SERVICES,Parkview Care Broadstairs Ltd,RESIDENTIAL PLACEMENTS - PRIVATE CONTRACTORS PAYMENT," 20,327.15 ",Social Community Care Supplies & Service.Children.Childcare Services,Q3
05/12/2016,ADULT SOCIAL CARE,Allied Healthcare (UK) Ltd,DOMICILIARY CARE - THIRD PARTY," 20,074.76 ",Social Community Care Supplies & Service.Adult.Domiciliary Care,Q3
09/12/2016,CAPITAL CC,Make Good,CONSULTANCY FEES," 20,050.00 ",Consultancy.Technical & Feasibility.NA,Q3
13/12/2016,CAPITAL CC,Ernest Doe & Sons Ltd,GROUNDS MAINTENANCE," 19,995.00 ",Horticultural.Seeds & Plants.NA,Q3
06/12/2016,HOUSING SERVICES (HRA),Ealing Law Centre,LEGAL FEES," 19,953.40 ",Legal Services.Legal Opinion.NA,Q3
24/11/2016,CHILDREN'S SERVICES,Hopscotch Care Ltd,RESIDENTIAL PLACEMENTS - PRIVATE CONTRACTORS PAYMENT," 19,928.57 ",Social Community Care Supplies & Service.Children.Residential Care,Q3
26/10/2016,CHILDREN'S SERVICES,Supporting Futures Ltd,RESIDENTIAL PLACEMENTS - PRIVATE CONTRACTORS PAYMENT," 19,928.57 ",Social Community Care Supplies & Service.Children.Residential Care,Q3
23/12/2016,CHILDREN'S SERVICES,Supporting Futures Ltd,RESIDENTIAL PLACEMENTS - PRIVATE CONTRACTORS PAYMENT," 19,928.57 ",Social Community Care Supplies & Service.Children.Residential Care,Q3
29/12/2016,CAPITAL CC,Igloo Regeneration Ltd,"MAINTENANCE - EQUIPMENT, FURNITURE AND MATERIALS"," 19,850.00 ","Works - Construction, Repair & Maint.Roads.Reconstruction & Resurfacing",Q3
18/10/2016,HOUSING SERVICES (HRA),Mears Ltd,MISCELLANEOUS EXPENSES," 19,802.65 ","Works - Construction, Repair & Maint.Buildings.Repair & Maintenance",Q3
30/11/2016,CAPITAL CC,Baily Garner LLP,"MAINTENANCE - EQUIPMENT, FURNITURE AND MATERIALS"," 19,800.00 ","Works - Construction, Repair & Maint.Architect.NA",Q3
21/12/2016,CHILDREN'S SERVICES,London Borough of Southwark,PAYMENT TO HEALTH AUTHORITIES," 19,800.00 ",Healthcare.Public Health.NA,Q3
12/12/2016,"NEIGHBOURHOODS, ENVIRONMENT & EMPLOYMENT",RPM (Surrey) Ltd,OPEN SPACES WORKS," 19,800.00 ","Works - Construction, Repair & Maint.Open Spaces.Repair & Maintenance",Q3
05/12/2016,ADULT SOCIAL CARE,Penrose Options_d,PRIVATE CONTRACTORS PAYMENT - OTHER," 19,752.23 ",Social Community Care Supplies & Service.Adult.Residential Care,Q3
10/10/2016,ADULT SOCIAL CARE,Allied Healthcare (UK) Ltd,DOMICILIARY CARE - THIRD PARTY," 19,743.48 ",Social Community Care Supplies & Service.Adult.Domiciliary Care,Q3
24/11/2016,CHILDREN'S SERVICES,Cambian Childcare Ltd,RESIDENTIAL PLACEMENTS - PRIVATE CONTRACTORS PAYMENT," 19,714.29 ",Social Community Care Supplies & Service.Children.Residential Care,Q3
24/11/2016,CHILDREN'S SERVICES,Parkview Care Broadstairs Ltd,RESIDENTIAL PLACEMENTS - PRIVATE CONTRACTORS PAYMENT," 19,671.43 ",Social Community Care Supplies & Service.Children.Childcare Services,Q3
21/12/2016,HOUSING SERVICES (HRA),Mears Ltd,RESPONSIVE REPAIRS - BUILDING," 19,649.92 ","Works - Construction, Repair & Maint.Buildings.Repair & Maintenance",Q3
21/12/2016,ADULT SOCIAL CARE,Dunheved Lodge,RESIDENTIAL PLACEMENTS - PRIVATE CONTRACTORS PAYMENT," 19,560.00 ",Social Community Care Supplies & Service.Adult.Residential Care,Q3
25/11/2016,STRATEGY & COMMISSIONING - CHILDREN,Andrew Christie Consulting Ltd,CONSULTANCY FEES," 19,500.00 ",Consultancy.Business.NA,Q3
14/10/2016,PUBLIC HEALTH,Imperial College Healthcare NHS Trust,PAYMENT TO HEALTH AUTHORITIES," 19,428.00 ",Healthcare.Public Health.NA,Q3
06/12/2016,PUBLIC HEALTH,Imperial College Healthcare NHS Trust,PAYMENT TO HEALTH AUTHORITIES," 19,428.00 ",Healthcare.Public Health.NA,Q3
06/12/2016,PUBLIC HEALTH,Imperial College Healthcare NHS Trust,PAYMENT TO HEALTH AUTHORITIES," 19,428.00 ",Healthcare.Public Health.NA,Q3
04/11/2016,ADULT SOCIAL CARE,Thames Reach,PRIVATE CONTRACTORS PAYMENT - OTHER," 19,352.20 ",Social Community Care Supplies & Service.Adult.Mental Health Services,Q3
02/11/2016,ADULT SOCIAL CARE,Thames Reach,PRIVATE CONTRACTORS PAYMENT - OTHER," 19,352.20 ",Social Community Care Supplies & Service.Adult.Mental Health Services,Q3
05/12/2016,ADULT SOCIAL CARE,Thames Reach,PRIVATE CONTRACTORS PAYMENT - OTHER," 19,352.20 ",Social Community Care Supplies & Service.Adult.Mental Health Services,Q3
29/12/2016,ADULT SOCIAL CARE,Thames Reach,PRIVATE CONTRACTORS PAYMENT - OTHER," 19,352.20 ",Social Community Care Supplies & Service.Adult.Mental Health Services,Q3
30/11/2016,CHILDREN'S SERVICES,Hampshire County Council,PRIVATE CONTRACTORS PAYMENT - OTHER," 19,333.00 ",Social Community Care Supplies & Service.Adult.Sheltered Accommodation,Q3
01/12/2016,FINANCE,Kennedys,LEGAL FEES," 19,323.80 ",Legal Services.General Support.NA,Q3
25/11/2016,CHILDREN'S SERVICES,Supporting Futures Ltd,RESIDENTIAL PLACEMENTS - PRIVATE CONTRACTORS PAYMENT," 19,285.71 ",Social Community Care Supplies & Service.Children.Residential Care,Q3
26/10/2016,CHILDREN'S SERVICES,Mcrae Residential Care Services,RESIDENTIAL PLACEMENTS - PRIVATE CONTRACTORS PAYMENT," 19,251.00 ",Social Community Care Supplies & Service.Adult.Residential Care,Q3
23/12/2016,CHILDREN'S SERVICES,Mcrae Residential Care Services,RESIDENTIAL PLACEMENTS - PRIVATE CONTRACTORS PAYMENT," 19,251.00 ",Social Community Care Supplies & Service.Adult.Residential Care,Q3
26/10/2016,CHILDREN'S SERVICES,3 Dimensions Care Ltd,RESIDENTIAL PLACEMENTS - PRIVATE CONTRACTORS PAYMENT," 19,228.86 ",Social Community Care Supplies & Service.Children.Fostering,Q3
23/12/2016,CHILDREN'S SERVICES,3 Dimensions Care Ltd,RESIDENTIAL PLACEMENTS - PRIVATE CONTRACTORS PAYMENT," 19,228.85 ",Social Community Care Supplies & Service.Children.Fostering,Q3
04/11/2016,ADULT SOCIAL CARE,Lambeth Mencap_d,FLOATING SUPPORT SERVICES - PRIVATE CONTRACTORS PAYMENT," 19,129.92 ",Social Community Care Supplies & Service.Disabled Children.Care Services,Q3
05/12/2016,ADULT SOCIAL CARE,Lambeth Mencap_d,FLOATING SUPPORT SERVICES - PRIVATE CONTRACTORS PAYMENT," 19,129.92 ",Social Community Care Supplies & Service.Disabled Children.Care Services,Q3
29/12/2016,ADULT SOCIAL CARE,Lambeth Mencap_d,FLOATING SUPPORT SERVICES - PRIVATE CONTRACTORS PAYMENT," 19,129.92 ",Social Community Care Supplies & Service.Disabled Children.Care Services,Q3
03/11/2016,"NEIGHBOURHOODS, ENVIRONMENT & EMPLOYMENT",City of London,BED & BREAKFAST - PRIVATE CONTRACTORS PAYMENT," 19,000.00 ","Social Community Care Supplies & Service.Adult.Temporary Accommodation, Short Stay",Q3
